Workbook

Sheet Instrucciones para la hoja de p
A1: Hoja de cálculo del presupuesto Aprobación OMB NO.: 1121-0329 Expira el 30/11/2020
A2: Para obtener una versión accesible y compatible con la norma 508 de la hoja de cálculo del presupuesto, utilice el siguiente enlace:
A3: https://ojp.gov/funding/Apply/Forms/BudgetDetailWorksheet/BDW508.pdf
A4: Instrucciones para la hoja de trabajo
A5: Nota: Este documento requiere que las macros estén habilitadas para funcionar correctamente. Por favor, asegúrese de que las macros están activadas antes de introducir cualquier dato. Puede habilitar las macros eligiendo la opción "Habilitar este contenido" de la barra de advertencia de seguridad que aparece en la parte superior. Si la barra de opciones no está visible, es posible que se le haya pedido que habilite las macros al abrir el documento, como se muestra aquí. Si ha elegido desactivar las macros,
G6: cierre el documento y vuelva a abrirlo con las macros activadas.
A7: Objetivo:
A8: La hoja de detalle del presupuesto se proporciona para su uso en la preparación del presupuesto y la descripción del mismo. Se debe proporcionar toda la información requerida (incluida la descripción del presupuesto). Cualquier categoría de gasto que no sea aplicable a su presupuesto puede ser dejada en blanco. Indique el importe no federal (que coincida) en la categoría correspondiente, si procede.
A9: Cómo utilizar este manual:
A10: El manual incluye varias hojas de trabajo. La primera hoja de trabajo (ésta) es una hoja de instrucciones; la siguiente incluye la hoja de detalle del presupuesto y la descripción para el año 1. Hay duplicados de esta hoja de trabajo para los años 2-5 que pueden completarse según sea necesario. La última hoja de trabajo es un resumen del presupuesto. Recoge toda la información presupuestaria pertinente en un único lugar y debe revisarse para comprobar que es correcta antes de cargar el libro de trabajo en la aplicación GMS. Utilización paso a paso: 1. Por favor, lea e imprima esta página de instrucciones. Puede utilizarse como referencia mientras se completa el resto del documento. 2. Para cada categoría presupuestaria, puede ver un ejemplo consultando la "Hoja de ejemplo detallada del presupuesto". 3. La pestaña "Definiciones" explica los términos utilizados en las instrucciones para las distintas categorías presupuestarias. 4. Retención de registros: De conformidad con los requisitos establecidos en la parte 2 00.333 del título 2 del CFR, cada organización deberá conservar todos los registros financieros, los d ocumentos justificativos, los registros estadísticos y todos los demás registros relacionados con la subvención durante al menos tres años tras el cierre del informe de auditoría correspondiente al periodo de subvención. 5. La información divulgada en este formulario está sujeta a la Ley de Libertad de Información en virtud del U.S.C. 55.2.
A12: Información del punto de contacto del presupuesto:
A13: Nombre del contacto: | B13: Apellido: | F13: Primer nombre: | J13: Segundo nombre:
A14: Teléfono de contacto: | D14: Fax de contacto: | H14: Correo electrónico de contacto:
A15: Índice de hojas de cálculo:
A16: Pestaña
A17: Detalle del presupuesto Año 1
A18: Detalle del presupuesto Año 2
A19: Detalle del presupuesto Año 3
A20: Detalle del presupuesto Año 4
A21: Detalle del presupuesto Año 5
A22: Resumen del presupuesto
A23: Ej - detalle del presupuesto
A24: Definiciones
A25: Descripciones de categorías presupuestarias:
A26: Personal | B26: Enumere cada puesto por título y nombre del empleado, si procede. Indique la tarifa salarial anual y el porcentaje de tiempo que se dedicará al proyecto. La remuneración de los empleados que participan en las actividades de la subvención debe ser coherente con la que se paga por un trabajo similar dentro de la organización solicitante. En la descripción del presupuesto, incluya una descripción de las responsabilidades y funciones de cada puesto en relación con el cumplimiento de las metas y objetivos del proyecto. Toda la información solicitada debe incluirse en la hoja de cálculo del presupuesto y en la descripción del mismo.
A27: Beneficios adicionales | B27: Las prestaciones complementarias deben basarse en los costes reales conocidos o en una tarifa negociada aprobada por un organismo federal. Si no se basa en una tarifa negociada aprobada, indique la composición del paquete de prestaciones complementarias. Los beneficios adicionales son para el personal que figura en la categoría presupuestaria (A) y sólo para el porcentaje de tiempo dedicado al proyecto. Toda la información solicitada debe incluirse en la hoja de cálculo del presupuesto y en la descripción del mismo.
A28: Viajes | B28: Detalle los gastos de viaje del personal (por ejemplo, del personal que asiste a la formación, entrevistas sobre el terreno, reunión del grupo consultivo, etc.). Describa la finalidad de cada gasto de viaje en relación con los objetivos del proyecto. Indique la base de cálculo (por ejemplo, seis personas a una formación de 3 días a X dólares de tarifa aérea, X dólares de alojamiento, X dólares de manutención). En los proyectos de formación, los viajes y las comidas de los participantes deben figurar por separado. Indique el número de alumnos y los costes unitarios correspondientes. Señale el lugar del viaje, si lo conoce; o si lo desconoce, indique "lugar por determinar". Indique si se sigue la política de viajes formal por escrito del solicitante o la normativa federal sobre viajes. Nota: Los gastos de viaje de los consultores deben incluirse en los campos de datos "Viajes de los consultores" en la categoría "Subconcesiones ( subvenciones )/Contratos de adquisición".
A29: Equipamiento | B29: Enumere los artículos no expendibles que se van a comprar (Nota: Debe utilizarse la política de capitalización propia de la organización para la clasificación del equipo). Los artículos consumibles deben incluirse en la categoría "Suministros". Los solicitantes deben analizar las ventajas de coste de la compra frente al arrendamiento de equipos, especialmente los artículos de alto coste y los sujetos a rápidos avances tecnológicos. Los costes de los equipos alquilados o arrendados deben figurar en los campos de datos "Contratos" en la categoría "Subconcesiones ( subvenciones )/Contratos de adquisición” En la descripción del presupuesto, explique por qué el equipo es necesario para el éxito del proyecto y describa el método de adquisición que se utilizará. Toda la información solicitada debe incluirse en la hoja de cálculo del presupuesto y en la descripción del mismo.
A30: Suministros | B30: Enumere los artículos por tipo (suministros de oficina, franqueo, material de formación, papel de copia y artículos de equipo fungible que cuesten menos de 5.000 dólares, como libros, grabadoras de mano) y muestre la base de cálculo. Por lo general, los suministros incluyen cualquier material fungible o consumido durante el transcurso del proyecto. Toda la información solicitada debe incluirse en la hoja de cálculo del presupuesto y en la descripción del mismo.
A31: Construcción | B31: Describa el proyecto de construcción y haga una estimación de los costes. Las reparaciones o renovaciones menores pueden ser admisibles y deben clasificarse en la categoría "Otros". La OJP no financia actualmente programas de construcción. Consulte con la oficina del programa antes de presupuestar fondos en esta categoría. Toda la información solicitada debe incluirse en la hoja de cálculo del presupuesto y en la descripción del mismo.
A32: Subconcesiones ( subvenciones), Contratos de adquisición y Honorarios de consultores | B32: Subconcesiones (véase la definición de "Subconcesión" en 2 CFR 200.92): Proporcione una descripción de las actividades de la concesión federal que se propone que lleve a cabo cualquier subreceptor y una estimación del coste (incluya el coste por subreceptor, en la medida en que se conozca antes de la presentación de la solicitud). Para cada subreceptor, introduzca el nombre de la entidad subreceptora, si se conoce. Indique cualquier información de subvención incluida en la categoría presupuestaria G. Subconcesiones/contratos de adquisición incluyendo la etiqueta "(subconcesión)" con cada entrada de subconcesión. Contratos de adquisición (véase la definición de "contrato" en el 2 CFR 200.22): Describa el producto o servicio que se va a adquirir por contrato y haga una estimación del coste. Indique si se sigue la Política de Adquisición formal y escrita del solicitante o el Reglamento Federal de Adquisiciones. Se anima a los solicitantes a promover la competencia libre y abierta en la adjudicación de contratos públicos. Se debe proporcionar una justificación separada para las adquisiciones de fuente única que superen el Umbral de Adquisición Simplificada establecido de acuerdo con el U.S.C. 41 de 1908 (actualmente fijado en 150.000 dólares). Honorarios de los consultores: Para cada consultor, introduzca el nombre, si lo conoce, el servicio que se va a prestar, los honorarios por hora o por día (jornada de 8 horas) y el tiempo estimado en el proyecto. Los honorarios de los consultores que superen la tarifa máxima del componente de subvención del DOJ por una jornada de 8 horas (actualmente 650 dólares) requieren una justificación adicional y la aprobación previa del respectivo componente de subvención del DOJ. Toda la información solicitada debe incluirse en la hoja de cálculo del presupuesto y en la descri pción del mismo.
A33: Otros costes | B33: Enumere los elementos (por ejemplo, alquiler, copias, teléfono, servicios de conserjería o seguridad y fondos de investigación o confidenciales) por tipo y la base del cálculo. Por ejemplo, proporcione los metros cuadrados y el coste por pie cuadrado del alquiler, o proporcione el coste mensual del alquiler y el número de meses de alquiler. Toda la información solicitada debe incluirse en la hoja de cálculo del presupuesto y en la descripción del mismo.
A34: Costos indirectos | B34: Los costes indirectos sólo se permiten si: a) el solicitante tiene una tasa de costes indirectos vigente y aprobada por el gobierno federal; o b) el solicitante puede utilizar la tasa de costes indirectos "de minimis" descrita en 2 C.F.R. 200.414(f) y opta por hacerlo. (Véase el apartado D.1.b. del Apéndice VII de la Parte 200-Propuestas de Costes Indirectos de los Estados y las Administraciones Locales y de las Tribus Indígenas para obtener una descripción de las entidades que no pueden optar por utilizar el porcentaje "de minimis"). Los solicitantes con una tasa de costes indirectos vigente y aprobada por el gobierno federal deben adjuntar una copia de la aprobación de la tasa, (un acuerdo negociado completamente formalizado. Si el solicitante no tiene una tarifa aprobada, puede solicitar una poniéndose en contacto con la agencia federal competente del solicitante, que revisará toda la documentación y aprobará una tarifa para la organización solicitante, o si el sistema de contabilidad del solicitante lo permite, los costes pueden asignarse en las categorías de costes directos. (Los gobiernos tribales indios solicitantes, en particular, deben revisar el Apéndice VII de la Parte 200-Propuestas de Costos Indirectos de los Gobiernos Estatales y Locales y de las Tribus Indias en relación con la presentación y documentación de las propuestas de costos indirectos). La narrativa de cualquier coste indirecto debe indicar claramente a qué costes directos se aplica el acuerdo de costes indirectos. Toda la información solicitada debe incluirse en la hoja de cálculo del presupuesto y en la descripción del mismo. Para poder utilizar el tipo indirecto "de minimis", el solicitante deberá adjuntar a la solicitud documentación escrita que informe al DOJ tanto de la elegibilidad del solicitante (para utilizar el tipo "de minimis") como de su elección. Si el solicitante opta por el método de minimis, los costes deben imputarse de forma coherente como costes indirectos o directos, pero no pueden imputarse por partida doble o de forma incoherente como unos y otros. Además, si se elige este método, deberá utilizarse de forma coherente para todas las concesiones federales hasta que la entidad solicitante decida negociar un tipo de coste indirecto aprobado por el gobierno federal.

Sheet Demographics (hidden)
A1: Demographic Form
B2: Please fill out this form in its entirety. Note that each subsection has individual instructions. Please read them carefully before filling out this form. If you are applying as a consortium please aggregate the data for all the Tribes represented in your application.
A3: I. Tribe Information
B4: 1. The name of each federally-recognized Indian Tribe that will be served by the proposed project(s):
B5: Name(s) | D5: The name(s) of your tribe and represented tribes.
B7: BIA Region(s)
B9: 2. What is the Tribe's current enrollment, including members living both on and off the reservation?
B11: 3. What is the Tribe's juvenile population, including members living both on and off the reservation?
B13: 4. Of your current enrollment, what is the Tribe's total number of unemployed 18 years and over?
B15: 5. Of your current enrollment, what is the Tribe's total number of under-employed (below the poverty line) 18 years and over?
B17: 6. Of your current enrollment, what is the Tribe's total number of employed 18 years and over?
B19: 7. What is the current local population base?
B21: 8. Please enter the approximate square mileage of the reservation/jurisdiction to be served: (sq. miles)
B23: 9. Please check the crime victim population area(s) that best describe the services the Tribe typically supports.
B34: 10. Have you applied for a CTAS grant before?
C36: If yes, what year?
B38: 11. Please provide your status as an applicant (check all that apply):
B45: a. If you selected Tribal Coalition or Tribal Consortia please list the tribes you represent:
B49: b. If you selected Non-profit organization describe the nature of you services and whom you provide them.
B54: 12. Please indicate if you agree with the following statement: The tribe(s)submitting this application consider themselves to be remotely located with respect to availability of justice or other relevant community services.
B55: If you selected “Yes”, please provide a brief statement that explains your selection. Examples might include “For a majority of our tribal community, law enforcement resource centers are greater than 1 hour’s drive away.” Or “Our tribal community has no resident medical facilities and the nearest public health center is operated by the City/Town of XXX which is not within tribal lands and not easily reached.”
A59: II. Property/Violent Crime
B60: Using the most recent available data and to the best of your ability using the UCR crime definitions, enter the actual number of incidents reported to your Tribe for the following crime types. Note that only those incidents for which your Tribe had primary response authority should be provided.
C62: UCR Data *
C63: Year
C64: Criminal Homicide
C65: Forcible Rape
C66: Robbery
C67: Aggravated Assault
C68: Burglary
C69: Larceny (except motor vehicle theft)
C70: Motor Vehicle Theft
B72: *Note: If your Tribe is not using UCR data or reports to NIBRS, please explain the source or methods used to report your crime data. If you do not report crime incidents at all please explain why you are unable to provide such data. If instructions are needed on converting your data to UCR Summary Data style please view the COPS Application Guide of the FBI's UCR Handbook (www.fbi.gov/ucr/handbook/ucrhandbook04.pdf) for more information.
B81: The FBI is retiring the current Summary Reporting System (SRS) and will transition to an all-NIBRS data collection system within the next five years. The transition to NIBRS will provide a more complete and accurate picture of crime at the tribal, national, state, and local level. As of 2021, the FBI will no longer collect summary data and will only accept data in the NIBRS format and COPS Office awards will be based on submitted NIBRS data. Transitioning all law enforcement agencies to NIBRS is the first step in gathering more comprehensive crime data. Tribal, state, and local COPS grantees are encouraged to expedite the transition to NIBRS in their jurisdictions so that they will remain eligible to receive COPS Office awards.
A83: III. Tribal Law Enforcement Information
B84: Please answer the following questions. NOTE: If you choose "none" for question 1 you are finished completing this section and do not need to answer 1a or 1b.
B85: 1. What law enforcement agency or departments does your Tribe operate? (check all that apply):
B93: a. What is the actual population your department serves as the primary law enforcement agency entity?
C94: This may or may not be the same as the population reported in the U.S. Census, the Tribe's current enrollment or the local population base. A Tribe with primary law enforcement authority is defined as having first responder responsibility to calls for service for all types of criminal incidents within its jurisdiction.
B97: b. Enter the current Fiscal Year Actual Sworn Force Strength as of the date of this application:
C98: The actual number of sworn officer positions is the actual number of sworn positions employed by your Tribe as of the date of this application. Do not include funded but currently vacant positions or unpaid positions. NOTE: For Tribes with multiple component law enforcement departments (e.g. Department of Public Safety and Fish and Wildlife Department), please report cumulative, full- and part-time sworn-force strength number for all law enforcement departments in your Tribe which would receive funding through this request if awarded.
C99: Full-Time: | F99: Part-Time:
B101: 2. On average how many hours of IN-SERVICE (non-recruit) training (e.g. FTO, continuing professional education, roll call, standard) are required annually for each of your agency’s officers/deputies in the following categories (if none, please indicate 0 hours)?
C103: Use of Force: | F103: De-escalation of conflict:
C105: Racial and ethnic bias that includes elements of implicit/unconscious bias:
C108: Gender bias in response to domestic violence and sexual assault:
C110: Bias towards lesbian, gay, bisexual, and transgender (LGBT) individuals:
C112: Community engagement (e.g., community policing and problem solving):
B114: 3. Does your agency administer a police training academy?
B116: 4. How many total hours of basic/recruit ACADEMY training are required for each of your agency’s officer/deputy recruits in the following categories (if none, please indicate 0 hours)?
C118: Use of Force: | F118: De-escalation of conflict:
C120: Racial and ethnic bias that includes elements of implicit/unconscious bias:
C123: Gender bias in response to domestic violence and sexual assault:
C125: Bias towards lesbian, gay, bisexual, and transgender (LGBT) individuals:
C127: Community engagement (e.g., community policing and problem solving):
A129: IV. Tribal Facilities, Capacities and Capabilities
B130: 1. Telecommunications and Technology
B131: a. Describe your Internet Access:
B137: b. What types of communication services are generally available to the tribe at large and/or the tribe's justice components? (check all that apply)
H139: Tribe | I139: Justice
C140: i. Land Line (telephone, dial-up service)
C141: ii. Cellular (telephone, data, etc.)
C142: iii. Satellite - Receive only (broadcasting services)
C143: iv. Satellite - 2-way (2-way voice and data and well as broadcasting)
C144: v. Radio services - (HF, VHF, UHF)
C145: vi. Point to Point Microwave
C146: vii. Other (please describe)
D147: Tribal
D149: Justice Comp.
B151: 2. Facilities and Services (check all that apply)
B152: Applicants should check and provide data for all the facilities and services located within the reservation/jurisdiction described in question 8 above.
G154: # of beds
G155: # of facilities
G156: # of facilities
G157: # of facilities
G158: # of facilities
G159: # of beds
G160: # of beds
G161: # of facilities
G162: # of facilities
G163: # of facilities
G164: # of facilities

Sheet Detalle del presupuesto Año 1
A1: ='Instrucciones para la hoja de p'!A17 -> Detalle del presupuesto Año 1
A2: ¿Incluye este presupuesto los costes de conferencias, que se definen de forma amplia para incluir reuniones, retiros, seminarios, simposios y actividades de formación? S/N
A3: (Guía financiera del DOJ, sección 3.10)
A4: A. Personal
A5: Nombre | B5: Cargo | C5: Cálculo
A6: Mencione cada nombre, en caso de que lo conozca. | B6: Mencione cada Cargo, en caso de que lo conozca. | C6: Indique la tasa de salario anual y la cantidad de tiempo dedicado al proyecto para cada nombre/puesto.
C7: Salario | E7: Tasa | F7: Tiempo trabajado (número de horas, días, meses, años) | H7: Porcentaje de tiempo | J7: Coste total | K7: Contribución no federal | L7: Solicitud federal
J9: =CEILING(C9*F9*H9,1) -> 0 | L9: =IF(J9-K9<0,0,J9-K9) -> 0
J10: =CEILING(C10*F10*H10,1) -> 0 | L10: =IF(J10-K10<0,0,J10-K10) -> 0
J11: =CEILING(C11*F11*H11,1) -> 0 | L11: =IF(J11-K11<0,0,J11-K11) -> 0
A12: Total(es) | J12: =SUM(J9:J11) -> 0 | K12: =SUM(K9:K11) -> 0 | L12: =SUM(L9:L11) -> 0
A13: Descripción
A16: B. Beneficios adicionales
A17: Nombre | D17: Cálculo
A18: Enumere cada uno de los puestos financiados por la subvención que reciban beneficios adicionales. | D18: Mostrar la base de cálculo
D19: Base | F19: Tasa | J19: Coste total | K19: Contribución no federal | L19: Solicitud federal
J21: =CEILING(D21*F21,1) -> 0 | L21: =IF(J21-K21<0,0,J21-K21) -> 0
J22: =CEILING(D22*F22,1) -> 0 | L22: =IF(J22-K22<0,0,J22-K22) -> 0
J23: =CEILING(D23*F23,1) -> 0 | L23: =IF(J23-K23<0,0,J23-K23) -> 0
A24: Total(es) | J24: =SUM(J21:J23) -> 0 | K24: =SUM(K21:K23) -> 0 | L24: =SUM(L21:L23) -> 0
A25: Descripción
A28: C. Viajes
A29: Propósito del viaje | B29: Ubicación | D29: Tipo de gasto | E29: Base | F29: Cálculo
A30: Indique el objetivo de cada viaje o tipo de viaje (formación, reunión del grupo consultivo) | B30: Indique el destino del viaje. | D30: Alojamiento, comidas, etc. | E30: Por día, milla, viaje, etc. | F30: Calcula el coste de cada tipo de gasto X el número de personas que viajan.
F31: Costo | G31: Cantidad | H31: # de Personal | I31: # Número de viajes | J31: Coste total | K31: Contribución no federal | L31: Solicitud federal
E33: =IF((D33="Lodging"),"Night",IF((D33="Meals"),"Day",IF((D33="Mileage"),"Mile",IF((D33="Transportation"),"Round-trip","N/A")))) -> N/A | J33: =CEILING(F33*G33*H33*I33,1) -> 0 | L33: =IF(J33-K33<0,0,J33-K33) -> 0
E34: =IF((D34="Lodging"),"Night",IF((D34="Meals"),"Day",IF((D34="Mileage"),"Mile",IF((D34="Transportation"),"Round-trip","N/A")))) -> N/A | J34: =CEILING(F34*G34*H34*I34,1) -> 0 | L34: =IF(J34-K34<0,0,J34-K34) -> 0
E35: =IF((D35="Lodging"),"Night",IF((D35="Meals"),"Day",IF((D35="Mileage"),"Mile",IF((D35="Transportation"),"Round-trip","N/A")))) -> N/A | J35: =CEILING(F35*G35*H35*I35,1) -> 0 | L35: =IF(J35-K35<0,0,J35-K35) -> 0
A36: Total(es) | J36: =SUM(J33:J35) -> 0 | K36: =SUM(K33:K35) -> 0 | L36: =SUM(L33:L35) -> 0
A37: Descripción
A40: D. Equipamiento
A41: Elemento | D41: Cálculo
A42: Enumere y describa cada uno de los equipos que se van a adquirir | D42: Calcular el coste (por ejemplo, el número de cada artículo que hay que comprar X el coste por artículo)
D43: # Número de elementos | F43: Coste unitario | J43: Coste total | K43: Contribución no federal | L43: Solicitud federal
J45: =CEILING(D45*F45,1) -> 0 | L45: =IF(J45-K45<0,0,J45-K45) -> 0
J46: =CEILING(D46*F46,1) -> 0 | L46: =IF(J46-K46<0,0,J46-K46) -> 0
J47: =CEILING(D47*F47,1) -> 0 | L47: =IF(J47-K47<0,0,J47-K47) -> 0
A48: Total(es) | J48: =SUM(J45:J47) -> 0 | K48: =SUM(K45:K47) -> 0 | L48: =SUM(L45:L47) -> 0
A49: Descripción
A50: Utilice las directrices del Tesoro del Estado de Nueva Jersey que definen el Equipo como un artículo individual que cueste 1.000 dólares o más. Utilice la política de capitalización propia de la Agencia si el Equipo se define como un artículo individual que cueste menos de 1.000 dólares.
A52: E. Suministros
A53: Artículos de suministro | D53: Cálculo
A54: Proporcione una lista de los tipos de artículos que se comprarán con los fondos de la subvención. | D54: Describa el artículo y calcule los costes. Cálculo: el número de cada artículo que hay que comprar X el coste por artículo.
D55: # Número de elementos | F55: Coste unitario | J55: Coste total | K55: Contribución no federal | L55: Solicitud federal
J57: =CEILING(D57*F57,1) -> 0 | L57: =IF(J57-K57<0,0,J57-K57) -> 0
J58: =CEILING(D58*F58,1) -> 0 | L58: =IF(J58-K58<0,0,J58-K58) -> 0
J59: =CEILING(D59*F59,1) -> 0 | L59: =IF(J59-K59<0,0,J59-K59) -> 0
A60: Total(es) | J60: =SUM(J57:J59) -> 0 | K60: =SUM(K57:K59) -> 0 | L60: =SUM(L57:L59) -> 0
A61: Descripción
A62: Utilice las directrices del Tesoro del Estado de Nueva Jersey que definen los suministros como un artículo individual que cuesta menos de 1.000 dólares. Utilice la política propia de la agencia si los suministros se definen como un artículo que cuesta menos de 999 dólares.
A64: F. Construcción
A65: Objetivo | B65: Descripción del trabajo | D65: Cálculo
A66: Indicar la finalidad de la construcción | B66: Describa el o los proyectos de construcción | D66: Calcular el coste (por ejemplo, el número de cada artículo que hay que comprar X el coste por artículo)
D67: # Número de elementos | F67: Costo | J67: Coste total | K67: Contribución no federal | L67: Solicitud federal
J69: =CEILING(D69*F69,1) -> 0 | L69: =IF(J69-K69<0,0,J69-K69) -> 0
J70: =CEILING(D70*F70,1) -> 0 | L70: =IF(J70-K70<0,0,J70-K70) -> 0
J71: =CEILING(D71*F71,1) -> 0 | L71: =IF(J71-K71<0,0,J71-K71) -> 0
A72: Total(es) | J72: =SUM(J69:J71) -> 0 | K72: =SUM(K69:K71) -> 0 | L72: =SUM(L69:L71) -> 0
A73: Descripción
A76: G. Subconcesiones (subvenciones)
A77: Descripción | C77: Objetivo | H77: ¿Asesor?
A78: Describa las actividades que llevarán a cabo los subreceptores. | C78: Describa la finalidad de la subconcesión (subvención) | H78: ¿La subvención es para un consultor? En caso afirmativo, utilice la sección siguiente para explicar los gastos de viaje asociados incluidos en el coste.
J79: Coste total | K79: Contribución no federal | L79: Solicitud federal
L81: =IF(J81-K81<0,0,J81-K81) -> 0
L82: =IF(J82-K82<0,0,J82-K82) -> 0
L83: =IF(J83-K83<0,0,J83-K83) -> 0
A84: Total(es) | J84: =SUM(J81:J83)+J93 -> 0 | K84: =SUM(K81:K83)+K93 -> 0 | L84: =SUM(L81:L83)+L93 -> 0
A85: Viajes de los asesores (de ser necesarios)
A86: Propósito del viaje | B86: Ubicación | D86: Tipo de gasto | G86: Cálculo
A87: Indique el objetivo de cada viaje o tipo de viaje (formación, reunión del grupo consultivo) | B87: Indique el destino del viaje. | D87: Hotel, pasajes aéreos, viáticos | G87: Calcula el coste de cada tipo de gasto X el número de personas que viajan.
G88: Costo | H88: Duración o distancia | I88: # de Personal | J88: Coste total | K88: Contribución no federal | L88: Solicitud federal
J90: =CEILING(G90*H90*I90,1) -> 0 | L90: =IF(J90-K90<0,0,J90-K90) -> 0
J91: =CEILING(G91*H91*I91,1) -> 0 | L91: =IF(J91-K91<0,0,J91-K91) -> 0
J92: =CEILING(G92*H92*I92,1) -> 0 | L92: =IF(J92-K92<0,0,J92-K92) -> 0
A93: Total | J93: =SUM(J90:J92) -> 0 | K93: =SUM(K90:K92) -> 0 | L93: =SUM(L90:L92) -> 0
A94: Descripción
A97: H. Contratos de adquisición
A98: Descripción | C98: Objetivo | H98: ¿Asesor?
A99: Describa el producto o servicio que se va a adquirir por contrato y haga una estimación del coste. Se anima a los solicitantes a promover la competencia libre y abierta en la adjudicación de contratos. Se debe proporcionar una justificación separada para las adquisiciones de fuente única que superen el Umbral de Adquisición Simplificada (actualmente 150.000 dólares). | C99: Describa el propósito del contrato | H99: ¿La subvención es para un consultor? En caso afirmativo, utilice la sección siguiente para explicar los gastos de viaje asociados incluidos en el coste.
J100: Coste total | K100: Contribución no federal | L100: Solicitud federal
L102: =IF(J102-K102<0,0,J102-K102) -> 0
L103: =IF(J103-K103<0,0,J103-K103) -> 0
L104: =IF(J104-K104<0,0,J104-K104) -> 0
A105: Total(es) | J105: =SUM(J102:J104)+J114 -> 0 | K105: =SUM(K102:K104)+K114 -> 0 | L105: =SUM(L102:L104)+L114 -> 0
A106: Viajes de los asesores (de ser necesarios)
A107: Propósito del viaje | B107: Ubicación | D107: Tipo de gasto | G107: Cálculo
A108: Indique el objetivo de cada viaje o tipo de viaje (formación, reunión del grupo consultivo) | B108: Indique el destino del viaje. | D108: Hotel, pasajes aéreos, viáticos | G108: Calcula el coste de cada tipo de gasto X el número de personas que viajan.
G109: Costo | H109: Duración o distancia | I109: # de Personal | J109: Coste total | K109: Contribución no federal | L109: Solicitud federal
J111: =CEILING(G111*H111*I111,1) -> 0 | L111: =IF(J111-K111<0,0,J111-K111) -> 0
J112: =CEILING(G112*H112*I112,1) -> 0 | L112: =IF(J112-K112<0,0,J112-K112) -> 0
J113: =CEILING(G113*H113*I113,1) -> 0 | L113: =IF(J113-K113<0,0,J113-K113) -> 0
A114: Total | J114: =SUM(J111:J113) -> 0 | K114: =SUM(K111:K113) -> 0 | L114: =SUM(L111:L113) -> 0
A115: Descripción
A118: I. Otros costes
A119: Descripción | C119: Cálculo
A120: Enumere y describa los elementos que se pagarán con los fondos de las subvenciones (por ejemplo, alquiler, copias, teléfono, conserjería o servicios de seguridad, y fondos de investigación o confidenciales). | C120: Mostrar la base de cálculo
C121: Cantidad | E121: Base | F121: Costo | H121: Duración | J121: Coste total | K121: Contribución no federal | L121: Solicitud federal
J123: =CEILING(C123*F123*H123,1) -> 0 | L123: =IF(J123-K123<0,0,J123-K123) -> 0
J124: =CEILING(C124*F124*H124,1) -> 0 | L124: =IF(J124-K124<0,0,J124-K124) -> 0
J125: =CEILING(C125*F125*H125,1) -> 0 | L125: =IF(J125-K125<0,0,J125-K125) -> 0
A126: Total(es) | J126: =SUM(J123:J125) -> 0 | K126: =SUM(K123:K125) -> 0 | L126: =SUM(L123:L125) -> 0
A127: Descripción
A130: J. Costos indirectos
A131: Descripción | D131: Cálculo
A132: Describa cuál es la tasa aprobada y cómo se aplica. | D132: Calcule los costes indirectos para las partes del programa que permiten tales costes.
D133: Base | F133: Tasa de costos indirectos | J133: Coste total | K133: Contribución no federal | L133: Solicitud federal
J135: =CEILING(D135*F135,1) -> 0 | L135: =IF(J135-K135<0,0,J135-K135) -> 0
J136: =CEILING(D136*F136,1) -> 0 | L136: =IF(J136-K136<0,0,J136-K136) -> 0
J137: =CEILING(D137*F137,1) -> 0 | L137: =IF(J137-K137<0,0,J137-K137) -> 0
A138: Total(es) | J138: =SUM(J135:J137) -> 0 | K138: =SUM(K135:K137) -> 0 | L138: =SUM(L135:L137) -> 0
A139: Descripción

Sheet Detalle del presupuesto Año 2
A1: ='Instrucciones para la hoja de p'!A18 -> Detalle del presupuesto Año 2
A2: ¿Incluye este presupuesto los costes de conferencias, que se definen de forma amplia para incluir reuniones, retiros, seminarios, simposios y actividades de formación? S/N
A3: (Guía financiera del DOJ, sección 3.10)
A4: A. Personal
A5: Nombre | B5: Cargo | C5: Cálculo
A6: Mencione cada nombre, en caso de que lo conozca. | B6: Mencione cada Cargo, en caso de que lo conozca. | C6: Indique la tasa de salario anual y la cantidad de tiempo dedicado al proyecto para cada nombre/puesto.
C7: Salario | E7: Tasa | F7: Tiempo trabajado (número de horas, días, meses, años) | H7: Porcentaje de tiempo | J7: Coste total | K7: Contribución no federal | L7: Solicitud federal
J9: =CEILING(C9*F9*H9,1) -> 0 | L9: =IF(J9-K9<0,0,J9-K9) -> 0
J10: =CEILING(C10*F10*H10,1) -> 0 | L10: =IF(J10-K10<0,0,J10-K10) -> 0
J11: =CEILING(C11*F11*H11,1) -> 0 | L11: =IF(J11-K11<0,0,J11-K11) -> 0
A12: Total(es) | J12: =SUM(J9:J11) -> 0 | K12: =SUM(K9:K11) -> 0 | L12: =SUM(L9:L11) -> 0
A13: Descripción
A16: B. Beneficios adicionales
A17: Nombre | D17: Cálculo
A18: Enumere cada uno de los puestos financiados por la subvención que reciban beneficios adicionales. | D18: Mostrar la base de cálculo
D19: Base | F19: Tasa | J19: Coste total | K19: Contribución no federal | L19: Solicitud federal
J21: =CEILING(D21*F21,1) -> 0 | L21: =IF(J21-K21<0,0,J21-K21) -> 0
J22: =CEILING(D22*F22,1) -> 0 | L22: =IF(J22-K22<0,0,J22-K22) -> 0
J23: =CEILING(D23*F23,1) -> 0 | L23: =IF(J23-K23<0,0,J23-K23) -> 0
A24: Total(es) | J24: =SUM(J21:J23) -> 0 | K24: =SUM(K21:K23) -> 0 | L24: =SUM(L21:L23) -> 0
A25: Descripción
A28: C. Viajes
A29: Propósito del viaje | B29: Ubicación | D29: Tipo de gasto | E29: Base | F29: Cálculo
A30: Indique el objetivo de cada viaje o tipo de viaje (formación, reunión del grupo consultivo) | B30: Indique el destino del viaje. | D30: Alojamiento, comidas, etc. | E30: Por día, milla, viaje, etc. | F30: Calcula el coste de cada tipo de gasto X el número de personas que viajan.
F31: Costo | G31: Cantidad | H31: # de Personal | I31: # Número de viajes | J31: Coste total | K31: Contribución no federal | L31: Solicitud federal
E33: =IF((D33="Lodging"),"Night",IF((D33="Meals"),"Day",IF((D33="Mileage"),"Mile",IF((D33="Transportation"),"Round-trip","N/A")))) -> N/A | J33: =CEILING(F33*G33*H33*I33,1) -> 0 | L33: =IF(J33-K33<0,0,J33-K33) -> 0
E34: =IF((D34="Lodging"),"Night",IF((D34="Meals"),"Day",IF((D34="Mileage"),"Mile",IF((D34="Transportation"),"Round-trip","N/A")))) -> N/A | J34: =CEILING(F34*G34*H34*I34,1) -> 0 | L34: =IF(J34-K34<0,0,J34-K34) -> 0
E35: =IF((D35="Lodging"),"Night",IF((D35="Meals"),"Day",IF((D35="Mileage"),"Mile",IF((D35="Transportation"),"Round-trip","N/A")))) -> N/A | J35: =CEILING(F35*G35*H35*I35,1) -> 0 | L35: =IF(J35-K35<0,0,J35-K35) -> 0
A36: Total(es) | J36: =SUM(J33:J35) -> 0 | K36: =SUM(K33:K35) -> 0 | L36: =SUM(L33:L35) -> 0
A37: Descripción
A40: D. Equipamiento
A41: Elemento | D41: Cálculo
A42: Enumere y describa cada uno de los equipos que se van a adquirir | D42: Calcular el coste (por ejemplo, el número de cada artículo que hay que comprar X el coste por artículo)
D43: # Número de elementos | F43: Coste unitario | J43: Coste total | K43: Contribución no federal | L43: Solicitud federal
J45: =CEILING(D45*F45,1) -> 0 | L45: =IF(J45-K45<0,0,J45-K45) -> 0
J46: =CEILING(D46*F46,1) -> 0 | L46: =IF(J46-K46<0,0,J46-K46) -> 0
J47: =CEILING(D47*F47,1) -> 0 | L47: =IF(J47-K47<0,0,J47-K47) -> 0
A48: Total(es) | J48: =SUM(J45:J47) -> 0 | K48: =SUM(K45:K47) -> 0 | L48: =SUM(L45:L47) -> 0
A49: Descripción
A50: Utilice las directrices del Tesoro del Estado de Nueva Jersey que definen el Equipo como un artículo individual que cueste 1.000 dólares o más. Utilice la política de capitalización propia de la Agencia si el Equipo se define como un artículo individual que cueste menos de 1.000 dólares.
A52: E. Suministros
A53: Artículos de suministro | D53: Cálculo
A54: Proporcione una lista de los tipos de artículos que se comprarán con los fondos de la subvención. | D54: Describa el artículo y calcule los costes. Cálculo: el número de cada artículo que hay que comprar X el coste por artículo.
D55: # Número de elementos | F55: Coste unitario | J55: Coste total | K55: Contribución no federal | L55: Solicitud federal
J57: =CEILING(D57*F57,1) -> 0 | L57: =IF(J57-K57<0,0,J57-K57) -> 0
J58: =CEILING(D58*F58,1) -> 0 | L58: =IF(J58-K58<0,0,J58-K58) -> 0
J59: =CEILING(D59*F59,1) -> 0 | L59: =IF(J59-K59<0,0,J59-K59) -> 0
A60: Total(es) | J60: =SUM(J57:J59) -> 0 | K60: =SUM(K57:K59) -> 0 | L60: =SUM(L57:L59) -> 0
A61: Descripción
A62: Utilice las directrices del Tesoro del Estado de Nueva Jersey que definen los suministros como un artículo individual que cuesta menos de 1.000 dólares. Utilice la política propia de la agencia si los suministros se definen como un artículo que cuesta menos de 999 dólares.
A64: F. Construcción
A65: Objetivo | B65: Descripción del trabajo | D65: Cálculo
A66: Indicar la finalidad de la construcción | B66: Describa el o los proyectos de construcción | D66: Calcular el coste (por ejemplo, el número de cada artículo que hay que comprar X el coste por artículo)
D67: # Número de elementos | F67: Costo | J67: Coste total | K67: Contribución no federal | L67: Solicitud federal
J69: =CEILING(D69*F69,1) -> 0 | L69: =IF(J69-K69<0,0,J69-K69) -> 0
J70: =CEILING(D70*F70,1) -> 0 | L70: =IF(J70-K70<0,0,J70-K70) -> 0
J71: =CEILING(D71*F71,1) -> 0 | L71: =IF(J71-K71<0,0,J71-K71) -> 0
A72: Total(es) | J72: =SUM(J69:J71) -> 0 | K72: =SUM(K69:K71) -> 0 | L72: =SUM(L69:L71) -> 0
A73: Descripción
A76: G. Subconcesiones (subvenciones)
A77: Descripción | C77: Objetivo | H77: ¿Asesor?
A78: Describa las actividades que llevarán a cabo los subreceptores. | C78: Describa la finalidad de la subconcesión (subvención) | H78: ¿La subvención es para un consultor? En caso afirmativo, utilice la sección siguiente para explicar los gastos de viaje asociados incluidos en el coste.
J79: Coste total | K79: Contribución no federal | L79: Solicitud federal
L81: =IF(J81-K81<0,0,J81-K81) -> 0
L82: =IF(J82-K82<0,0,J82-K82) -> 0
L83: =IF(J83-K83<0,0,J83-K83) -> 0
A84: Total(es) | J84: =SUM(J81:J83)+J93 -> 0 | K84: =SUM(K81:K83)+K93 -> 0 | L84: =SUM(L81:L83)+L93 -> 0
A85: Viajes de los asesores (de ser necesarios)
A86: Propósito del viaje | B86: Ubicación | D86: Tipo de gasto | G86: Cálculo
A87: Indique el objetivo de cada viaje o tipo de viaje (formación, reunión del grupo consultivo) | B87: Indique el destino del viaje. | D87: Hotel, pasajes aéreos, viáticos | G87: Calcula el coste de cada tipo de gasto X el número de personas que viajan.
G88: Costo | H88: Duración o distancia | I88: # de Personal | J88: Coste total | K88: Contribución no federal | L88: Solicitud federal
J90: =CEILING(G90*H90*I90,1) -> 0 | L90: =IF(J90-K90<0,0,J90-K90) -> 0
J91: =CEILING(G91*H91*I91,1) -> 0 | L91: =IF(J91-K91<0,0,J91-K91) -> 0
J92: =CEILING(G92*H92*I92,1) -> 0 | L92: =IF(J92-K92<0,0,J92-K92) -> 0
A93: Total | J93: =SUM(J90:J92) -> 0 | K93: =SUM(K90:K92) -> 0 | L93: =SUM(L90:L92) -> 0
A94: Descripción
A97: H. Contratos de adquisición
A98: Descripción | C98: Objetivo | H98: ¿Asesor?
A99: Describa el producto o servicio que se va a adquirir por contrato y haga una estimación del coste. Se anima a los solicitantes a promover la competencia libre y abierta en la adjudicación de contratos. Se debe proporcionar una justificación separada para las adquisiciones de fuente única que superen el Umbral de Adquisición Simplificada (actualmente 150.000 dólares). | C99: Describa el propósito del contrato | H99: ¿La subvención es para un consultor? En caso afirmativo, utilice la sección siguiente para explicar los gastos de viaje asociados incluidos en el coste.
J100: Coste total | K100: Contribución no federal | L100: Solicitud federal
L102: =IF(J102-K102<0,0,J102-K102) -> 0
L103: =IF(J103-K103<0,0,J103-K103) -> 0
L104: =IF(J104-K104<0,0,J104-K104) -> 0
A105: Total(es) | J105: =SUM(J102:J104)+J114 -> 0 | K105: =SUM(K102:K104)+K114 -> 0 | L105: =SUM(L102:L104)+L114 -> 0
A106: Viajes de los asesores (de ser necesarios)
A107: Propósito del viaje | B107: Ubicación | D107: Tipo de gasto | G107: Cálculo
A108: Indique el objetivo de cada viaje o tipo de viaje (formación, reunión del grupo consultivo) | B108: Indique el destino del viaje. | D108: Hotel, pasajes aéreos, viáticos | G108: Calcula el coste de cada tipo de gasto X el número de personas que viajan.
G109: Costo | H109: Duración o distancia | I109: # de Personal | J109: Coste total | K109: Contribución no federal | L109: Solicitud federal
J111: =CEILING(G111*H111*I111,1) -> 0 | L111: =IF(J111-K111<0,0,J111-K111) -> 0
J112: =CEILING(G112*H112*I112,1) -> 0 | L112: =IF(J112-K112<0,0,J112-K112) -> 0
J113: =CEILING(G113*H113*I113,1) -> 0 | L113: =IF(J113-K113<0,0,J113-K113) -> 0
A114: Total | J114: =SUM(J111:J113) -> 0 | K114: =SUM(K111:K113) -> 0 | L114: =SUM(L111:L113) -> 0
A115: Descripción
A118: I. Otros costes
A119: Descripción | C119: Cálculo
A120: Enumere y describa los elementos que se pagarán con los fondos de las subvenciones (por ejemplo, alquiler, copias, teléfono, conserjería o servicios de seguridad, y fondos de investigación o confidenciales). | C120: Mostrar la base de cálculo
C121: Cantidad | E121: Base | F121: Costo | H121: Duración | J121: Coste total | K121: Contribución no federal | L121: Solicitud federal
J123: =CEILING(C123*F123*H123,1) -> 0 | L123: =IF(J123-K123<0,0,J123-K123) -> 0
J124: =CEILING(C124*F124*H124,1) -> 0 | L124: =IF(J124-K124<0,0,J124-K124) -> 0
J125: =CEILING(C125*F125*H125,1) -> 0 | L125: =IF(J125-K125<0,0,J125-K125) -> 0
A126: Total(es) | J126: =SUM(J123:J125) -> 0 | K126: =SUM(K123:K125) -> 0 | L126: =SUM(L123:L125) -> 0
A127: Descripción
A130: J. Costos indirectos
A131: Descripción | D131: Cálculo
A132: Describa cuál es la tasa aprobada y cómo se aplica. | D132: Calcule los costes indirectos para las partes del programa que permiten tales costes.
D133: Base | F133: Tasa de costos indirectos | J133: Coste total | K133: Contribución no federal | L133: Solicitud federal
J135: =CEILING(D135*F135,1) -> 0 | L135: =IF(J135-K135<0,0,J135-K135) -> 0
J136: =CEILING(D136*F136,1) -> 0 | L136: =IF(J136-K136<0,0,J136-K136) -> 0
J137: =CEILING(D137*F137,1) -> 0 | L137: =IF(J137-K137<0,0,J137-K137) -> 0
A138: Total(es) | J138: =SUM(J135:J137) -> 0 | K138: =SUM(K135:K137) -> 0 | L138: =SUM(L135:L137) -> 0
A139: Descripción

Sheet Detalle del presupuesto Año 3
A1: ='Instrucciones para la hoja de p'!A19 -> Detalle del presupuesto Año 3
A2: ¿Incluye este presupuesto los costes de conferencias, que se definen de forma amplia para incluir reuniones, retiros, seminarios, simposios y actividades de formación? S/N
A3: (Guía financiera del DOJ, sección 3.10)
A4: A. Personal
A5: Nombre | B5: Cargo | C5: Cálculo
A6: Mencione cada nombre, en caso de que lo conozca. | B6: Mencione cada Cargo, en caso de que lo conozca. | C6: Indique la tasa de salario anual y la cantidad de tiempo dedicado al proyecto para cada nombre/puesto.
C7: Salario | E7: Tasa | F7: Tiempo trabajado (número de horas, días, meses, años) | H7: Porcentaje de tiempo | J7: Coste total | K7: Contribución no federal | L7: Solicitud federal
J9: =CEILING(C9*F9*H9,1) -> 0 | L9: =IF(J9-K9<0,0,J9-K9) -> 0
J10: =CEILING(C10*F10*H10,1) -> 0 | L10: =IF(J10-K10<0,0,J10-K10) -> 0
J11: =CEILING(C11*F11*H11,1) -> 0 | L11: =IF(J11-K11<0,0,J11-K11) -> 0
A12: Total(es) | J12: =SUM(J9:J11) -> 0 | K12: =SUM(K9:K11) -> 0 | L12: =SUM(L9:L11) -> 0
A13: Descripción
A16: B. Beneficios adicionales
A17: Nombre | D17: Cálculo
A18: Enumere cada uno de los puestos financiados por la subvención que reciban beneficios adicionales. | D18: Mostrar la base de cálculo
D19: Base | F19: Tasa | J19: Coste total | K19: Contribución no federal | L19: Solicitud federal
J21: =CEILING(D21*F21,1) -> 0 | L21: =IF(J21-K21<0,0,J21-K21) -> 0
J22: =CEILING(D22*F22,1) -> 0 | L22: =IF(J22-K22<0,0,J22-K22) -> 0
J23: =CEILING(D23*F23,1) -> 0 | L23: =IF(J23-K23<0,0,J23-K23) -> 0
A24: Total(es) | J24: =SUM(J21:J23) -> 0 | K24: =SUM(K21:K23) -> 0 | L24: =SUM(L21:L23) -> 0
A25: Descripción
A28: C. Viajes
A29: Propósito del viaje | B29: Ubicación | D29: Tipo de gasto | E29: Base | F29: Cálculo
A30: Indique el objetivo de cada viaje o tipo de viaje (formación, reunión del grupo consultivo) | B30: Indique el destino del viaje. | D30: Alojamiento, comidas, etc. | E30: Por día, milla, viaje, etc. | F30: Calcula el coste de cada tipo de gasto X el número de personas que viajan.
F31: Costo | G31: Cantidad | H31: # de Personal | I31: # Número de viajes | J31: Coste total | K31: Contribución no federal | L31: Solicitud federal
E33: =IF((D33="Lodging"),"Night",IF((D33="Meals"),"Day",IF((D33="Mileage"),"Mile",IF((D33="Transportation"),"Round-trip","N/A")))) -> N/A | J33: =CEILING(F33*G33*H33*I33,1) -> 0 | L33: =IF(J33-K33<0,0,J33-K33) -> 0
E34: =IF((D34="Lodging"),"Night",IF((D34="Meals"),"Day",IF((D34="Mileage"),"Mile",IF((D34="Transportation"),"Round-trip","N/A")))) -> N/A | J34: =CEILING(F34*G34*H34*I34,1) -> 0 | L34: =IF(J34-K34<0,0,J34-K34) -> 0
E35: =IF((D35="Lodging"),"Night",IF((D35="Meals"),"Day",IF((D35="Mileage"),"Mile",IF((D35="Transportation"),"Round-trip","N/A")))) -> N/A | J35: =CEILING(F35*G35*H35*I35,1) -> 0 | L35: =IF(J35-K35<0,0,J35-K35) -> 0
A36: Total(es) | J36: =SUM(J33:J35) -> 0 | K36: =SUM(K33:K35) -> 0 | L36: =SUM(L33:L35) -> 0
A37: Descripción
A40: D. Equipamiento
A41: Elemento | D41: Cálculo
A42: Enumere y describa cada uno de los equipos que se van a adquirir | D42: Calcular el coste (por ejemplo, el número de cada artículo que hay que comprar X el coste por artículo)
D43: # Número de elementos | F43: Coste unitario | J43: Coste total | K43: Contribución no federal | L43: Solicitud federal
J45: =CEILING(D45*F45,1) -> 0 | L45: =IF(J45-K45<0,0,J45-K45) -> 0
J46: =CEILING(D46*F46,1) -> 0 | L46: =IF(J46-K46<0,0,J46-K46) -> 0
J47: =CEILING(D47*F47,1) -> 0 | L47: =IF(J47-K47<0,0,J47-K47) -> 0
A48: Total(es) | J48: =SUM(J45:J47) -> 0 | K48: =SUM(K45:K47) -> 0 | L48: =SUM(L45:L47) -> 0
A49: Descripción
A50: Utilice las directrices del Tesoro del Estado de Nueva Jersey que definen el Equipo como un artículo individual que cueste 1.000 dólares o más. Utilice la política de capitalización propia de la Agencia si el Equipo se define como un artículo individual que cueste menos de 1.000 dólares.
A52: E. Suministros
A53: Artículos de suministro | D53: Cálculo
A54: Proporcione una lista de los tipos de artículos que se comprarán con los fondos de la subvención. | D54: Describa el artículo y calcule los costes. Cálculo: el número de cada artículo que hay que comprar X el coste por artículo.
D55: # Número de elementos | F55: Coste unitario | J55: Coste total | K55: Contribución no federal | L55: Solicitud federal
J57: =CEILING(D57*F57,1) -> 0 | L57: =IF(J57-K57<0,0,J57-K57) -> 0
J58: =CEILING(D58*F58,1) -> 0 | L58: =IF(J58-K58<0,0,J58-K58) -> 0
J59: =CEILING(D59*F59,1) -> 0 | L59: =IF(J59-K59<0,0,J59-K59) -> 0
A60: Total(es) | J60: =SUM(J57:J59) -> 0 | K60: =SUM(K57:K59) -> 0 | L60: =SUM(L57:L59) -> 0
A61: Descripción
A62: Utilice las directrices del Tesoro del Estado de Nueva Jersey que definen los suministros como un artículo individual que cuesta menos de 1.000 dólares. Utilice la política propia de la agencia si los suministros se definen como un artículo que cuesta menos de 999 dólares.
A64: F. Construcción
A65: Objetivo | B65: Descripción del trabajo | D65: Cálculo
A66: Indicar la finalidad de la construcción | B66: Describa el o los proyectos de construcción | D66: Calcular el coste (por ejemplo, el número de cada artículo que hay que comprar X el coste por artículo)
D67: # Número de elementos | F67: Costo | J67: Coste total | K67: Contribución no federal | L67: Solicitud federal
J69: =CEILING(D69*F69,1) -> 0 | L69: =IF(J69-K69<0,0,J69-K69) -> 0
J70: =CEILING(D70*F70,1) -> 0 | L70: =IF(J70-K70<0,0,J70-K70) -> 0
J71: =CEILING(D71*F71,1) -> 0 | L71: =IF(J71-K71<0,0,J71-K71) -> 0
A72: Total(es) | J72: =SUM(J69:J71) -> 0 | K72: =SUM(K69:K71) -> 0 | L72: =SUM(L69:L71) -> 0
A73: Descripción
A76: G. Subconcesiones (subvenciones)
A77: Descripción | C77: Objetivo | H77: ¿Asesor?
A78: Describa las actividades que llevarán a cabo los subreceptores. | C78: Describa la finalidad de la subconcesión (subvención) | H78: ¿La subvención es para un consultor? En caso afirmativo, utilice la sección siguiente para explicar los gastos de viaje asociados incluidos en el coste.
J79: Coste total | K79: Contribución no federal | L79: Solicitud federal
L81: =IF(J81-K81<0,0,J81-K81) -> 0
L82: =IF(J82-K82<0,0,J82-K82) -> 0
L83: =IF(J83-K83<0,0,J83-K83) -> 0
A84: Total(es) | J84: =SUM(J81:J83)+J93 -> 0 | K84: =SUM(K81:K83)+K93 -> 0 | L84: =SUM(L81:L83)+L93 -> 0
A85: Viajes de los asesores (de ser necesarios)
A86: Propósito del viaje | B86: Ubicación | D86: Tipo de gasto | G86: Cálculo
A87: Indique el objetivo de cada viaje o tipo de viaje (formación, reunión del grupo consultivo) | B87: Indique el destino del viaje. | D87: Hotel, pasajes aéreos, viáticos | G87: Calcula el coste de cada tipo de gasto X el número de personas que viajan.
G88: Costo | H88: Duración o distancia | I88: # de Personal | J88: Coste total | K88: Contribución no federal | L88: Solicitud federal
J90: =CEILING(G90*H90*I90,1) -> 0 | L90: =IF(J90-K90<0,0,J90-K90) -> 0
J91: =CEILING(G91*H91*I91,1) -> 0 | L91: =IF(J91-K91<0,0,J91-K91) -> 0
J92: =CEILING(G92*H92*I92,1) -> 0 | L92: =IF(J92-K92<0,0,J92-K92) -> 0
A93: Total | J93: =SUM(J90:J92) -> 0 | K93: =SUM(K90:K92) -> 0 | L93: =SUM(L90:L92) -> 0
A94: Descripción
A97: H. Contratos de adquisición
A98: Descripción | C98: Objetivo | H98: ¿Asesor?
A99: Describa el producto o servicio que se va a adquirir por contrato y haga una estimación del coste. Se anima a los solicitantes a promover la competencia libre y abierta en la adjudicación de contratos. Se debe proporcionar una justificación separada para las adquisiciones de fuente única que superen el Umbral de Adquisición Simplificada (actualmente 150.000 dólares). | C99: Describa el propósito del contrato | H99: ¿La subvención es para un consultor? En caso afirmativo, utilice la sección siguiente para explicar los gastos de viaje asociados incluidos en el coste.
J100: Coste total | K100: Contribución no federal | L100: Solicitud federal
L102: =IF(J102-K102<0,0,J102-K102) -> 0
L103: =IF(J103-K103<0,0,J103-K103) -> 0
L104: =IF(J104-K104<0,0,J104-K104) -> 0
A105: Total(es) | J105: =SUM(J102:J104)+J114 -> 0 | K105: =SUM(K102:K104)+K114 -> 0 | L105: =SUM(L102:L104)+L114 -> 0
A106: Viajes de los asesores (de ser necesarios)
A107: Propósito del viaje | B107: Ubicación | D107: Tipo de gasto | G107: Cálculo
A108: Indique el objetivo de cada viaje o tipo de viaje (formación, reunión del grupo consultivo) | B108: Indique el destino del viaje. | D108: Hotel, pasajes aéreos, viáticos | G108: Calcula el coste de cada tipo de gasto X el número de personas que viajan.
G109: Costo | H109: Duración o distancia | I109: # de Personal | J109: Coste total | K109: Contribución no federal | L109: Solicitud federal
J111: =CEILING(G111*H111*I111,1) -> 0 | L111: =IF(J111-K111<0,0,J111-K111) -> 0
J112: =CEILING(G112*H112*I112,1) -> 0 | L112: =IF(J112-K112<0,0,J112-K112) -> 0
J113: =CEILING(G113*H113*I113,1) -> 0 | L113: =IF(J113-K113<0,0,J113-K113) -> 0
A114: Total | J114: =SUM(J111:J113) -> 0 | K114: =SUM(K111:K113) -> 0 | L114: =SUM(L111:L113) -> 0
A115: Descripción
A118: I. Otros costes
A119: Descripción | C119: Cálculo
A120: Enumere y describa los elementos que se pagarán con los fondos de las subvenciones (por ejemplo, alquiler, copias, teléfono, conserjería o servicios de seguridad, y fondos de investigación o confidenciales). | C120: Mostrar la base de cálculo
C121: Cantidad | E121: Base | F121: Costo | H121: Duración | J121: Coste total | K121: Contribución no federal | L121: Solicitud federal
J123: =CEILING(C123*F123*H123,1) -> 0 | L123: =IF(J123-K123<0,0,J123-K123) -> 0
J124: =CEILING(C124*F124*H124,1) -> 0 | L124: =IF(J124-K124<0,0,J124-K124) -> 0
J125: =CEILING(C125*F125*H125,1) -> 0 | L125: =IF(J125-K125<0,0,J125-K125) -> 0
A126: Total(es) | J126: =SUM(J123:J125) -> 0 | K126: =SUM(K123:K125) -> 0 | L126: =SUM(L123:L125) -> 0
A127: Descripción
A130: J. Costos indirectos
A131: Descripción | D131: Cálculo
A132: Describa cuál es la tasa aprobada y cómo se aplica. | D132: Calcule los costes indirectos para las partes del programa que permiten tales costes.
D133: Base | F133: Tasa de costos indirectos | J133: Coste total | K133: Contribución no federal | L133: Solicitud federal
J135: =CEILING(D135*F135,1) -> 0 | L135: =IF(J135-K135<0,0,J135-K135) -> 0
J136: =CEILING(D136*F136,1) -> 0 | L136: =IF(J136-K136<0,0,J136-K136) -> 0
J137: =CEILING(D137*F137,1) -> 0 | L137: =IF(J137-K137<0,0,J137-K137) -> 0
A138: Total(es) | J138: =SUM(J135:J137) -> 0 | K138: =SUM(K135:K137) -> 0 | L138: =SUM(L135:L137) -> 0
A139: Descripción

Sheet Detalle del presupuesto Año 4
A1: ='Instrucciones para la hoja de p'!A20 -> Detalle del presupuesto Año 4
A2: ¿Incluye este presupuesto los costes de conferencias, que se definen de forma amplia para incluir reuniones, retiros, seminarios, simposios y actividades de formación? S/N
A3: (Guía financiera del DOJ, sección 3.10)
A4: A. Personal
A5: Nombre | B5: Cargo | C5: Cálculo
A6: Mencione cada nombre, en caso de que lo conozca. | B6: Mencione cada Cargo, en caso de que lo conozca. | C6: Indique la tasa de salario anual y la cantidad de tiempo dedicado al proyecto para cada nombre/puesto.
C7: Salario | E7: Tasa | F7: Tiempo trabajado (número de horas, días, meses, años) | H7: Porcentaje de tiempo | J7: Coste total | K7: Contribución no federal | L7: Solicitud federal
J9: =CEILING(C9*F9*H9,1) -> 0 | L9: =IF(J9-K9<0,0,J9-K9) -> 0
J10: =CEILING(C10*F10*H10,1) -> 0 | L10: =IF(J10-K10<0,0,J10-K10) -> 0
J11: =CEILING(C11*F11*H11,1) -> 0 | L11: =IF(J11-K11<0,0,J11-K11) -> 0
A12: Total(es) | J12: =SUM(J9:J11) -> 0 | K12: =SUM(K9:K11) -> 0 | L12: =SUM(L9:L11) -> 0
A13: Descripción
A16: B. Beneficios adicionales
A17: Nombre | D17: Cálculo
A18: Enumere cada uno de los puestos financiados por la subvención que reciban beneficios adicionales. | D18: Mostrar la base de cálculo
D19: Base | F19: Tasa | J19: Coste total | K19: Contribución no federal | L19: Solicitud federal
J21: =CEILING(D21*F21,1) -> 0 | L21: =IF(J21-K21<0,0,J21-K21) -> 0
J22: =CEILING(D22*F22,1) -> 0 | L22: =IF(J22-K22<0,0,J22-K22) -> 0
J23: =CEILING(D23*F23,1) -> 0 | L23: =IF(J23-K23<0,0,J23-K23) -> 0
A24: Total(es) | J24: =SUM(J21:J23) -> 0 | K24: =SUM(K21:K23) -> 0 | L24: =SUM(L21:L23) -> 0
A25: Descripción
A28: C. Viajes
A29: Propósito del viaje | B29: Ubicación | D29: Tipo de gasto | E29: Base | F29: Cálculo
A30: Indique el objetivo de cada viaje o tipo de viaje (formación, reunión del grupo consultivo) | B30: Indique el destino del viaje. | D30: Alojamiento, comidas, etc. | E30: Por día, milla, viaje, etc. | F30: Calcula el coste de cada tipo de gasto X el número de personas que viajan.
F31: Costo | G31: Cantidad | H31: # de Personal | I31: # Número de viajes | J31: Coste total | K31: Contribución no federal | L31: Solicitud federal
E33: =IF((D33="Lodging"),"Night",IF((D33="Meals"),"Day",IF((D33="Mileage"),"Mile",IF((D33="Transportation"),"Round-trip","N/A")))) -> N/A | J33: =CEILING(F33*G33*H33*I33,1) -> 0 | L33: =IF(J33-K33<0,0,J33-K33) -> 0
E34: =IF((D34="Lodging"),"Night",IF((D34="Meals"),"Day",IF((D34="Mileage"),"Mile",IF((D34="Transportation"),"Round-trip","N/A")))) -> N/A | J34: =CEILING(F34*G34*H34*I34,1) -> 0 | L34: =IF(J34-K34<0,0,J34-K34) -> 0
E35: =IF((D35="Lodging"),"Night",IF((D35="Meals"),"Day",IF((D35="Mileage"),"Mile",IF((D35="Transportation"),"Round-trip","N/A")))) -> N/A | J35: =CEILING(F35*G35*H35*I35,1) -> 0 | L35: =IF(J35-K35<0,0,J35-K35) -> 0
A36: Total(es) | J36: =SUM(J33:J35) -> 0 | K36: =SUM(K33:K35) -> 0 | L36: =SUM(L33:L35) -> 0
A37: Descripción
A40: D. Equipamiento
A41: Elemento | D41: Cálculo
A42: Enumere y describa cada uno de los equipos que se van a adquirir | D42: Calcular el coste (por ejemplo, el número de cada artículo que hay que comprar X el coste por artículo)
D43: # Número de elementos | F43: Coste unitario | J43: Coste total | K43: Contribución no federal | L43: Solicitud federal
J45: =CEILING(D45*F45,1) -> 0 | L45: =IF(J45-K45<0,0,J45-K45) -> 0
J46: =CEILING(D46*F46,1) -> 0 | L46: =IF(J46-K46<0,0,J46-K46) -> 0
J47: =CEILING(D47*F47,1) -> 0 | L47: =IF(J47-K47<0,0,J47-K47) -> 0
A48: Total(es) | J48: =SUM(J45:J47) -> 0 | K48: =SUM(K45:K47) -> 0 | L48: =SUM(L45:L47) -> 0
A49: Descripción
A50: Utilice las directrices del Tesoro del Estado de Nueva Jersey que definen el Equipo como un artículo individual que cueste 1.000 dólares o más. Utilice la política de capitalización propia de la Agencia si el Equipo se define como un artículo individual que cueste menos de 1.000 dólares.
A52: E. Suministros
A53: Artículos de suministro | D53: Cálculo
A54: Proporcione una lista de los tipos de artículos que se comprarán con los fondos de la subvención. | D54: Describa el artículo y calcule los costes. Cálculo: el número de cada artículo que hay que comprar X el coste por artículo.
D55: # Número de elementos | F55: Coste unitario | J55: Coste total | K55: Contribución no federal | L55: Solicitud federal
J57: =CEILING(D57*F57,1) -> 0 | L57: =IF(J57-K57<0,0,J57-K57) -> 0
J58: =CEILING(D58*F58,1) -> 0 | L58: =IF(J58-K58<0,0,J58-K58) -> 0
J59: =CEILING(D59*F59,1) -> 0 | L59: =IF(J59-K59<0,0,J59-K59) -> 0
A60: Total(es) | J60: =SUM(J57:J59) -> 0 | K60: =SUM(K57:K59) -> 0 | L60: =SUM(L57:L59) -> 0
A61: Descripción
A62: Utilice las directrices del Tesoro del Estado de Nueva Jersey que definen los suministros como un artículo individual que cuesta menos de 1.000 dólares. Utilice la política propia de la agencia si los suministros se definen como un artículo que cuesta menos de 999 dólares.
A64: F. Construcción
A65: Objetivo | B65: Descripción del trabajo | D65: Cálculo
A66: Indicar la finalidad de la construcción | B66: Describa el o los proyectos de construcción | D66: Calcular el coste (por ejemplo, el número de cada artículo que hay que comprar X el coste por artículo)
D67: # Número de elementos | F67: Costo | J67: Coste total | K67: Contribución no federal | L67: Solicitud federal
J69: =CEILING(D69*F69,1) -> 0 | L69: =IF(J69-K69<0,0,J69-K69) -> 0
J70: =CEILING(D70*F70,1) -> 0 | L70: =IF(J70-K70<0,0,J70-K70) -> 0
J71: =CEILING(D71*F71,1) -> 0 | L71: =IF(J71-K71<0,0,J71-K71) -> 0
A72: Total(es) | J72: =SUM(J69:J71) -> 0 | K72: =SUM(K69:K71) -> 0 | L72: =SUM(L69:L71) -> 0
A73: Descripción
A76: G. Subconcesiones (subvenciones)
A77: Descripción | C77: Objetivo | H77: ¿Asesor?
A78: Describa las actividades que llevarán a cabo los subreceptores. | C78: Describa la finalidad de la subconcesión (subvención) | H78: ¿La subvención es para un consultor? En caso afirmativo, utilice la sección siguiente para explicar los gastos de viaje asociados incluidos en el coste.
J79: Coste total | K79: Contribución no federal | L79: Solicitud federal
L81: =IF(J81-K81<0,0,J81-K81) -> 0
L82: =IF(J82-K82<0,0,J82-K82) -> 0
L83: =IF(J83-K83<0,0,J83-K83) -> 0
A84: Total(es) | J84: =SUM(J81:J83)+J93 -> 0 | K84: =SUM(K81:K83)+K93 -> 0 | L84: =SUM(L81:L83)+L93 -> 0
A85: Viajes de los asesores (de ser necesarios)
A86: Propósito del viaje | B86: Ubicación | D86: Tipo de gasto | G86: Cálculo
A87: Indique el objetivo de cada viaje o tipo de viaje (formación, reunión del grupo consultivo) | B87: Indique el destino del viaje. | D87: Hotel, pasajes aéreos, viáticos | G87: Calcula el coste de cada tipo de gasto X el número de personas que viajan.
G88: Costo | H88: Duración o distancia | I88: # de Personal | J88: Coste total | K88: Contribución no federal | L88: Solicitud federal
J90: =CEILING(G90*H90*I90,1) -> 0 | L90: =IF(J90-K90<0,0,J90-K90) -> 0
J91: =CEILING(G91*H91*I91,1) -> 0 | L91: =IF(J91-K91<0,0,J91-K91) -> 0
J92: =CEILING(G92*H92*I92,1) -> 0 | L92: =IF(J92-K92<0,0,J92-K92) -> 0
A93: Total | J93: =SUM(J90:J92) -> 0 | K93: =SUM(K90:K92) -> 0 | L93: =SUM(L90:L92) -> 0
A94: Descripción
A97: H. Contratos de adquisición
A98: Descripción | C98: Objetivo | H98: ¿Asesor?
A99: Describa el producto o servicio que se va a adquirir por contrato y haga una estimación del coste. Se anima a los solicitantes a promover la competencia libre y abierta en la adjudicación de contratos. Se debe proporcionar una justificación separada para las adquisiciones de fuente única que superen el Umbral de Adquisición Simplificada (actualmente 150.000 dólares). | C99: Describa el propósito del contrato | H99: ¿La subvención es para un consultor? En caso afirmativo, utilice la sección siguiente para explicar los gastos de viaje asociados incluidos en el coste.
J100: Coste total | K100: Contribución no federal | L100: Solicitud federal
L102: =IF(J102-K102<0,0,J102-K102) -> 0
L103: =IF(J103-K103<0,0,J103-K103) -> 0
L104: =IF(J104-K104<0,0,J104-K104) -> 0
A105: Total(es) | J105: =SUM(J102:J104)+J114 -> 0 | K105: =SUM(K102:K104)+K114 -> 0 | L105: =SUM(L102:L104)+L114 -> 0
A106: Viajes de los asesores (de ser necesarios)
A107: Propósito del viaje | B107: Ubicación | D107: Tipo de gasto | G107: Cálculo
A108: Indique el objetivo de cada viaje o tipo de viaje (formación, reunión del grupo consultivo) | B108: Indique el destino del viaje. | D108: Hotel, pasajes aéreos, viáticos | G108: Calcula el coste de cada tipo de gasto X el número de personas que viajan.
G109: Costo | H109: Duración o distancia | I109: # de Personal | J109: Coste total | K109: Contribución no federal | L109: Solicitud federal
J111: =CEILING(G111*H111*I111,1) -> 0 | L111: =IF(J111-K111<0,0,J111-K111) -> 0
J112: =CEILING(G112*H112*I112,1) -> 0 | L112: =IF(J112-K112<0,0,J112-K112) -> 0
J113: =CEILING(G113*H113*I113,1) -> 0 | L113: =IF(J113-K113<0,0,J113-K113) -> 0
A114: Total | J114: =SUM(J111:J113) -> 0 | K114: =SUM(K111:K113) -> 0 | L114: =SUM(L111:L113) -> 0
A115: Descripción
A118: I. Otros costes
A119: Descripción | C119: Cálculo
A120: Enumere y describa los elementos que se pagarán con los fondos de las subvenciones (por ejemplo, alquiler, copias, teléfono, conserjería o servicios de seguridad, y fondos de investigación o confidenciales). | C120: Mostrar la base de cálculo
C121: Cantidad | E121: Base | F121: Costo | H121: Duración | J121: Coste total | K121: Contribución no federal | L121: Solicitud federal
J123: =CEILING(C123*F123*H123,1) -> 0 | L123: =IF(J123-K123<0,0,J123-K123) -> 0
J124: =CEILING(C124*F124*H124,1) -> 0 | L124: =IF(J124-K124<0,0,J124-K124) -> 0
J125: =CEILING(C125*F125*H125,1) -> 0 | L125: =IF(J125-K125<0,0,J125-K125) -> 0
A126: Total(es) | J126: =SUM(J123:J125) -> 0 | K126: =SUM(K123:K125) -> 0 | L126: =SUM(L123:L125) -> 0
A127: Descripción
A130: J. Costos indirectos
A131: Descripción | D131: Cálculo
A132: Describa cuál es la tasa aprobada y cómo se aplica. | D132: Calcule los costes indirectos para las partes del programa que permiten tales costes.
D133: Base | F133: Tasa de costos indirectos | J133: Coste total | K133: Contribución no federal | L133: Solicitud federal
J135: =CEILING(D135*F135,1) -> 0 | L135: =IF(J135-K135<0,0,J135-K135) -> 0
J136: =CEILING(D136*F136,1) -> 0 | L136: =IF(J136-K136<0,0,J136-K136) -> 0
J137: =CEILING(D137*F137,1) -> 0 | L137: =IF(J137-K137<0,0,J137-K137) -> 0
A138: Total(es) | J138: =SUM(J135:J137) -> 0 | K138: =SUM(K135:K137) -> 0 | L138: =SUM(L135:L137) -> 0
A139: Descripción

Sheet Detalle del presupuesto Año 5
A1: ='Instrucciones para la hoja de p'!A21 -> Detalle del presupuesto Año 5
A2: ¿Incluye este presupuesto los costes de conferencias, que se definen de forma amplia para incluir reuniones, retiros, seminarios, simposios y actividades de formación? S/N
A3: (Guía financiera del DOJ, sección 3.10)
A4: A. Personal
A5: Nombre | B5: Cargo | C5: Cálculo
A6: Mencione cada nombre, en caso de que lo conozca. | B6: Mencione cada Cargo, en caso de que lo conozca. | C6: Indique la tasa de salario anual y la cantidad de tiempo dedicado al proyecto para cada nombre/puesto.
C7: Salario | E7: Tasa | F7: Tiempo trabajado (número de horas, días, meses, años) | H7: Porcentaje de tiempo | J7: Coste total | K7: Contribución no federal | L7: Solicitud federal
J9: =CEILING(C9*F9*H9,1) -> 0 | L9: =IF(J9-K9<0,0,J9-K9) -> 0
J10: =CEILING(C10*F10*H10,1) -> 0 | L10: =IF(J10-K10<0,0,J10-K10) -> 0
J11: =CEILING(C11*F11*H11,1) -> 0 | L11: =IF(J11-K11<0,0,J11-K11) -> 0
A12: Total(es) | J12: =SUM(J9:J11) -> 0 | K12: =SUM(K9:K11) -> 0 | L12: =SUM(L9:L11) -> 0
A13: Descripción
A16: B. Beneficios adicionales
A17: Nombre | D17: Cálculo
A18: Enumere cada uno de los puestos financiados por la subvención que reciban beneficios adicionales. | D18: Mostrar la base de cálculo
D19: Base | F19: Tasa | J19: Coste total | K19: Contribución no federal | L19: Solicitud federal
J21: =CEILING(D21*F21,1) -> 0 | L21: =IF(J21-K21<0,0,J21-K21) -> 0
J22: =CEILING(D22*F22,1) -> 0 | L22: =IF(J22-K22<0,0,J22-K22) -> 0
J23: =CEILING(D23*F23,1) -> 0 | L23: =IF(J23-K23<0,0,J23-K23) -> 0
A24: Total(es) | J24: =SUM(J21:J23) -> 0 | K24: =SUM(K21:K23) -> 0 | L24: =SUM(L21:L23) -> 0
A25: Descripción
A28: C. Viajes
A29: Propósito del viaje | B29: Ubicación | D29: Tipo de gasto | E29: Base | F29: Cálculo
A30: Indique el objetivo de cada viaje o tipo de viaje (formación, reunión del grupo consultivo) | B30: Indique el destino del viaje. | D30: Alojamiento, comidas, etc. | E30: Por día, milla, viaje, etc. | F30: Calcula el coste de cada tipo de gasto X el número de personas que viajan.
F31: Costo | G31: Cantidad | H31: # de Personal | I31: # Número de viajes | J31: Coste total | K31: Contribución no federal | L31: Solicitud federal
E33: =IF((D33="Lodging"),"Night",IF((D33="Meals"),"Day",IF((D33="Mileage"),"Mile",IF((D33="Transportation"),"Round-trip","N/A")))) -> N/A | J33: =CEILING(F33*G33*H33*I33,1) -> 0 | L33: =IF(J33-K33<0,0,J33-K33) -> 0
E34: =IF((D34="Lodging"),"Night",IF((D34="Meals"),"Day",IF((D34="Mileage"),"Mile",IF((D34="Transportation"),"Round-trip","N/A")))) -> N/A | J34: =CEILING(F34*G34*H34*I34,1) -> 0 | L34: =IF(J34-K34<0,0,J34-K34) -> 0
E35: =IF((D35="Lodging"),"Night",IF((D35="Meals"),"Day",IF((D35="Mileage"),"Mile",IF((D35="Transportation"),"Round-trip","N/A")))) -> N/A | J35: =CEILING(F35*G35*H35*I35,1) -> 0 | L35: =IF(J35-K35<0,0,J35-K35) -> 0
A36: Total(es) | J36: =SUM(J33:J35) -> 0 | K36: =SUM(K33:K35) -> 0 | L36: =SUM(L33:L35) -> 0
A37: Descripción
A40: D. Equipamiento
A41: Elemento | D41: Cálculo
A42: Enumere y describa cada uno de los equipos que se van a adquirir | D42: Calcule el coste (por ejemplo, el número de cada artículo que hay que comprar X el coste por artículo)
D43: # Número de elementos | F43: Coste unitario | J43: Coste total | K43: Contribución no federal | L43: Solicitud federal
J45: =CEILING(D45*F45,1) -> 0 | L45: =IF(J45-K45<0,0,J45-K45) -> 0
J46: =CEILING(D46*F46,1) -> 0 | L46: =IF(J46-K46<0,0,J46-K46) -> 0
J47: =CEILING(D47*F47,1) -> 0 | L47: =IF(J47-K47<0,0,J47-K47) -> 0
A48: Total(es) | J48: =SUM(J45:J47) -> 0 | K48: =SUM(K45:K47) -> 0 | L48: =SUM(L45:L47) -> 0
A49: Descripción
A50: Utilice las directrices del Tesoro del Estado de Nueva Jersey que definen el Equipo como un artículo individual que cueste 1.000 dólares o más. Utilice la política de capitalización propia de la Agencia si el Equipo se define como un artículo individual que cueste menos de 1.000 dólares.
A52: E. Suministros
A53: Artículos de suministro | D53: Cálculo
A54: Proporcione una lista de los tipos de artículos que se comprarán con los fondos de la subvención. | D54: Describa el artículo y calcule los costes. Cálculo: el número de cada artículo que hay que comprar X el coste por artículo.
D55: # Número de elementos | F55: Coste unitario | J55: Coste total | K55: Contribución no federal | L55: Solicitud federal
J57: =CEILING(D57*F57,1) -> 0 | L57: =IF(J57-K57<0,0,J57-K57) -> 0
J58: =CEILING(D58*F58,1) -> 0 | L58: =IF(J58-K58<0,0,J58-K58) -> 0
J59: =CEILING(D59*F59,1) -> 0 | L59: =IF(J59-K59<0,0,J59-K59) -> 0
A60: Total(es) | J60: =SUM(J57:J59) -> 0 | K60: =SUM(K57:K59) -> 0 | L60: =SUM(L57:L59) -> 0
A61: Descripción
A62: Utilice las directrices del Tesoro del Estado de Nueva Jersey que definen los suministros como un artículo individual que cuesta menos de 1.000 dólares. Utilice la política propia de la agencia si los suministros se definen como un artículo que cuesta menos de 999 dólares.
A64: F. Construcción
A65: Objetivo | B65: Descripción del trabajo | D65: Cálculo
A66: Indique la finalidad de la construcción | B66: Describa el o los proyectos de construcción | D66: Calcule el coste (por ejemplo, el número de cada artículo que hay que comprar X el coste por artículo)
D67: # Número de elementos | F67: Costo | J67: Coste total | K67: Contribución no federal | L67: Solicitud federal
J69: =CEILING(D69*F69,1) -> 0 | L69: =IF(J69-K69<0,0,J69-K69) -> 0
J70: =CEILING(D70*F70,1) -> 0 | L70: =IF(J70-K70<0,0,J70-K70) -> 0
J71: =CEILING(D71*F71,1) -> 0 | L71: =IF(J71-K71<0,0,J71-K71) -> 0
A72: Total(es) | J72: =SUM(J69:J71) -> 0 | K72: =SUM(K69:K71) -> 0 | L72: =SUM(L69:L71) -> 0
A73: Descripción
A76: G. Subconcesiones (subvenciones)
A77: Descripción | C77: Objetivo | H77: ¿Asesor?
A78: Describa las actividades que llevarán a cabo los subreceptores. | C78: Describa la finalidad de la subconcesión (subvención) | H78: ¿La subvención es para un consultor? En caso afirmativo, utilice la sección siguiente para explicar los gastos de viaje asociados incluidos en el coste.
J79: Coste total | K79: Contribución no federal | L79: Solicitud federal
L81: =IF(J81-K81<0,0,J81-K81) -> 0
L82: =IF(J82-K82<0,0,J82-K82) -> 0
L83: =IF(J83-K83<0,0,J83-K83) -> 0
A84: Total(es) | J84: =SUM(J81:J83)+J93 -> 0 | K84: =SUM(K81:K83)+K93 -> 0 | L84: =SUM(L81:L83)+L93 -> 0
A85: Viajes de los asesores (de ser necesarios)
A86: Propósito del viaje | B86: Ubicación | D86: Tipo de gasto | G86: Cálculo
A87: Indique el objetivo de cada viaje o tipo de viaje (formación, reunión del grupo consultivo) | B87: Indique el destino del viaje. | D87: Hotel, pasajes aéreos, viáticos | G87: Calcule el coste de cada tipo de gasto X el número de personas que viajan.
G88: Costo | H88: Duración o distancia | I88: # de Personal | J88: Coste total | K88: Contribución no federal | L88: Solicitud federal
J90: =CEILING(G90*H90*I90,1) -> 0 | L90: =IF(J90-K90<0,0,J90-K90) -> 0
J91: =CEILING(G91*H91*I91,1) -> 0 | L91: =IF(J91-K91<0,0,J91-K91) -> 0
J92: =CEILING(G92*H92*I92,1) -> 0 | L92: =IF(J92-K92<0,0,J92-K92) -> 0
A93: Total | J93: =SUM(J90:J92) -> 0 | K93: =SUM(K90:K92) -> 0 | L93: =SUM(L90:L92) -> 0
A94: Descripción
A97: H. Contratos de adquisición
A98: Descripción | C98: Objetivo | H98: ¿Asesor?
A99: Describa el producto o servicio que se va a adquirir por contrato y haga una estimación del coste. Se anima a los solicitantes a promover la competencia libre y abierta en la adjudicación de contratos. Se debe proporcionar una justificación separada para las adquisiciones de fuente única que superen el Umbral de Adquisición Simplificada (actualmente 150.000 dólares). | C99: Describa el propósito del contrato | H99: ¿La subvención es para un consultor? En caso afirmativo, utilice la sección siguiente para explicar los gastos de viaje asociados incluidos en el coste.
J100: Coste total | K100: Contribución no federal | L100: Solicitud federal
L102: =IF(J102-K102<0,0,J102-K102) -> 0
L103: =IF(J103-K103<0,0,J103-K103) -> 0
L104: =IF(J104-K104<0,0,J104-K104) -> 0
A105: Total(es) | J105: =SUM(J102:J104)+J114 -> 0 | K105: =SUM(K102:K104)+K114 -> 0 | L105: =SUM(L102:L104)+L114 -> 0
A106: Viajes de los asesores (de ser necesarios)
A107: Propósito del viaje | B107: Ubicación | D107: Tipo de gasto | G107: Cálculo
A108: Indique el objetivo de cada viaje o tipo de viaje (formación, reunión del grupo consultivo) | B108: Indique el destino del viaje. | D108: Hotel, pasajes aéreos, viáticos | G108: Calcula el coste de cada tipo de gasto X el número de personas que viajan.
G109: Costo | H109: Duración o distancia | I109: # de Personal | J109: Coste total | K109: Contribución no federal | L109: Solicitud federal
J111: =CEILING(G111*H111*I111,1) -> 0 | L111: =IF(J111-K111<0,0,J111-K111) -> 0
J112: =CEILING(G112*H112*I112,1) -> 0 | L112: =IF(J112-K112<0,0,J112-K112) -> 0
J113: =CEILING(G113*H113*I113,1) -> 0 | L113: =IF(J113-K113<0,0,J113-K113) -> 0
A114: Total | J114: =SUM(J111:J113) -> 0 | K114: =SUM(K111:K113) -> 0 | L114: =SUM(L111:L113) -> 0
A115: Descripción
A118: I. Otros costes
A119: Descripción | C119: Cálculo
A120: Enumere y describa los elementos que se pagarán con los fondos de las subvenciones (por ejemplo, alquiler, copias, teléfono, conserjería o servicios de seguridad, y fondos de investigación o confidenciales). | C120: Mostrar la base de cálculo
C121: Cantidad | E121: Base | F121: Costo | H121: Duración | J121: Coste total | K121: Contribución no federal | L121: Solicitud federal
J123: =CEILING(C123*F123*H123,1) -> 0 | L123: =IF(J123-K123<0,0,J123-K123) -> 0
J124: =CEILING(C124*F124*H124,1) -> 0 | L124: =IF(J124-K124<0,0,J124-K124) -> 0
J125: =CEILING(C125*F125*H125,1) -> 0 | L125: =IF(J125-K125<0,0,J125-K125) -> 0
A126: Total(es) | J126: =SUM(J123:J125) -> 0 | K126: =SUM(K123:K125) -> 0 | L126: =SUM(L123:L125) -> 0
A127: Descripción
A130: J. Costos indirectos
A131: Descripción | D131: Cálculo
A132: Describa cuál es la tasa aprobada y cómo se aplica. | D132: Calcule los costes indirectos para las partes del programa que permiten tales costes.
D133: Base | F133: Tasa de costos indirectos | J133: Coste total | K133: Contribución no federal | L133: Solicitud federal
J135: =CEILING(D135*F135,1) -> 0 | L135: =IF(J135-K135<0,0,J135-K135) -> 0
J136: =CEILING(D136*F136,1) -> 0 | L136: =IF(J136-K136<0,0,J136-K136) -> 0
J137: =CEILING(D137*F137,1) -> 0 | L137: =IF(J137-K137<0,0,J137-K137) -> 0
A138: Total(es) | J138: =SUM(J135:J137) -> 0 | K138: =SUM(K135:K137) -> 0 | L138: =SUM(L135:L137) -> 0
A139: Descripción

Sheet Resumen del presupuesto
A1: Resumen del presupuesto
A2: Nota: Cualquier error detectado en esta página debe ser corregido en la pestaña correspondiente de Detalle del Presupuesto.
B3: Año 1 | D3: Año 2 ( de ser necesario) | F3: Año 3 ( de ser necesario) | H3: Año 4 ( de ser necesario) | J3: Año 5 ( de ser necesario)
A4: Categoría presupuestaria | B4: Solicitud federal | C4: Solicitud no federal | D4: Solicitud federal | E4: Solicitud no federal | F4: Solicitud federal | G4: Solicitud no federal | H4: Solicitud federal | I4: Solicitud no federal | J4: Solicitud federal | K4: Solicitud no federal | L4: Total(es)
A8: A. Personal | B8: ='Detalle del presupuesto Año 1'!L12 -> 0 | C8: ='Detalle del presupuesto Año 1'!K12 -> 0 | D8: ='Detalle del presupuesto Año 2'!L12 -> 0 | E8: ='Detalle del presupuesto Año 2'!K12 -> 0 | F8: ='Detalle del presupuesto Año 3'!L12 -> 0 | G8: ='Detalle del presupuesto Año 3'!K12 -> 0 | H8: ='Detalle del presupuesto Año 4'!L12 -> 0 | I8: ='Detalle del presupuesto Año 4'!K12 -> 0 | J8: ='Detalle del presupuesto Año 5'!L12 -> 0 | K8: ='Detalle del presupuesto Año 5'!K12 -> 0 | L8: =SUM(B8:K8) -> 0
A9: B. Beneficios adicionales | B9: ='Detalle del presupuesto Año 1'!L24 -> 0 | C9: ='Detalle del presupuesto Año 1'!K24 -> 0 | D9: ='Detalle del presupuesto Año 2'!L24 -> 0 | E9: ='Detalle del presupuesto Año 2'!K24 -> 0 | F9: ='Detalle del presupuesto Año 3'!L24 -> 0 | G9: ='Detalle del presupuesto Año 3'!K24 -> 0 | H9: ='Detalle del presupuesto Año 4'!L24 -> 0 | I9: ='Detalle del presupuesto Año 4'!K24 -> 0 | J9: ='Detalle del presupuesto Año 5'!L24 -> 0 | K9: ='Detalle del presupuesto Año 5'!K24 -> 0 | L9: 0
A10: C. Viajes | B10: ='Detalle del presupuesto Año 1'!L36 -> 0 | C10: ='Detalle del presupuesto Año 1'!K36 -> 0 | D10: ='Detalle del presupuesto Año 2'!L36 -> 0 | E10: ='Detalle del presupuesto Año 2'!K36 -> 0 | F10: ='Detalle del presupuesto Año 3'!L36 -> 0 | G10: ='Detalle del presupuesto Año 3'!K36 -> 0 | H10: ='Detalle del presupuesto Año 4'!L36 -> 0 | I10: ='Detalle del presupuesto Año 4'!K36 -> 0 | J10: ='Detalle del presupuesto Año 5'!L36 -> 0 | K10: ='Detalle del presupuesto Año 5'!K36 -> 0 | L10: 0
A11: D. Equipo | B11: ='Detalle del presupuesto Año 1'!L48 -> 0 | C11: ='Detalle del presupuesto Año 1'!K48 -> 0 | D11: ='Detalle del presupuesto Año 2'!L48 -> 0 | E11: ='Detalle del presupuesto Año 2'!K48 -> 0 | F11: ='Detalle del presupuesto Año 3'!L48 -> 0 | G11: ='Detalle del presupuesto Año 3'!K48 -> 0 | H11: ='Detalle del presupuesto Año 4'!L48 -> 0 | I11: ='Detalle del presupuesto Año 4'!K48 -> 0 | J11: ='Detalle del presupuesto Año 5'!L48 -> 0 | K11: ='Detalle del presupuesto Año 5'!K48 -> 0 | L11: 0
A12: E. Suministros | B12: ='Detalle del presupuesto Año 1'!L60 -> 0 | C12: ='Detalle del presupuesto Año 1'!K60 -> 0 | D12: ='Detalle del presupuesto Año 2'!L60 -> 0 | E12: ='Detalle del presupuesto Año 2'!K60 -> 0 | F12: ='Detalle del presupuesto Año 3'!L60 -> 0 | G12: ='Detalle del presupuesto Año 3'!K60 -> 0 | H12: ='Detalle del presupuesto Año 4'!L60 -> 0 | I12: ='Detalle del presupuesto Año 4'!K60 -> 0 | J12: ='Detalle del presupuesto Año 5'!L60 -> 0 | K12: ='Detalle del presupuesto Año 5'!K60 -> 0 | L12: 0
A13: F. Construcción | B13: ='Detalle del presupuesto Año 1'!L72 -> 0 | C13: ='Detalle del presupuesto Año 1'!K72 -> 0 | D13: ='Detalle del presupuesto Año 2'!L72 -> 0 | E13: ='Detalle del presupuesto Año 2'!K72 -> 0 | F13: ='Detalle del presupuesto Año 3'!L72 -> 0 | G13: ='Detalle del presupuesto Año 3'!K72 -> 0 | H13: ='Detalle del presupuesto Año 4'!L72 -> 0 | I13: ='Detalle del presupuesto Año 4'!K72 -> 0 | J13: ='Detalle del presupuesto Año 5'!L72 -> 0 | K13: ='Detalle del presupuesto Año 5'!K72 -> 0 | L13: 0
A14: G. Subconcesiones (subvenciones) | B14: ='Detalle del presupuesto Año 1'!L84 -> 0 | C14: ='Detalle del presupuesto Año 1'!K84 -> 0 | D14: ='Detalle del presupuesto Año 2'!L84 -> 0 | E14: ='Detalle del presupuesto Año 2'!K84 -> 0 | F14: ='Detalle del presupuesto Año 3'!L84 -> 0 | G14: ='Detalle del presupuesto Año 3'!K84 -> 0 | H14: ='Detalle del presupuesto Año 4'!L84 -> 0 | I14: ='Detalle del presupuesto Año 4'!K84 -> 0 | J14: ='Detalle del presupuesto Año 5'!L84 -> 0 | K14: ='Detalle del presupuesto Año 5'!K84 -> 0 | L14: 0
A15: H. Contratos de adquisición | B15: ='Detalle del presupuesto Año 1'!L105 -> 0 | C15: ='Detalle del presupuesto Año 1'!K105 -> 0 | D15: ='Detalle del presupuesto Año 2'!L105 -> 0 | E15: ='Detalle del presupuesto Año 2'!K105 -> 0 | F15: ='Detalle del presupuesto Año 3'!L105 -> 0 | G15: ='Detalle del presupuesto Año 3'!K105 -> 0 | H15: ='Detalle del presupuesto Año 4'!L105 -> 0 | I15: ='Detalle del presupuesto Año 4'!K105 -> 0 | J15: ='Detalle del presupuesto Año 5'!L105 -> 0 | K15: ='Detalle del presupuesto Año 5'!K105 -> 0 | L15: 0
A16: I. Otros | B16: ='Detalle del presupuesto Año 1'!L126 -> 0 | C16: ='Detalle del presupuesto Año 1'!K126 -> 0 | D16: ='Detalle del presupuesto Año 2'!L126 -> 0 | E16: ='Detalle del presupuesto Año 2'!K126 -> 0 | F16: ='Detalle del presupuesto Año 3'!L126 -> 0 | G16: ='Detalle del presupuesto Año 3'!K126 -> 0 | H16: ='Detalle del presupuesto Año 4'!L126 -> 0 | I16: ='Detalle del presupuesto Año 4'!K126 -> 0 | J16: ='Detalle del presupuesto Año 5'!L126 -> 0 | K16: ='Detalle del presupuesto Año 5'!K126 -> 0 | L16: 0
A18: Costes directos totales | B18: =SUM(B8:B16) -> 0 | C18: 0 | D18: 0 | E18: 0 | F18: 0 | G18: 0 | H18: 0 | I18: 0 | J18: 0 | K18: 0 | L18: =SUM(B18:K18) -> 0
A19: J. Costos indirectos | B19: ='Detalle del presupuesto Año 1'!L138 -> 0 | C19: ='Detalle del presupuesto Año 1'!K138 -> 0 | D19: ='Detalle del presupuesto Año 2'!L138 -> 0 | E19: ='Detalle del presupuesto Año 2'!K138 -> 0 | F19: ='Detalle del presupuesto Año 3'!L138 -> 0 | G19: ='Detalle del presupuesto Año 3'!K138 -> 0 | H19: ='Detalle del presupuesto Año 4'!L138 -> 0 | I19: ='Detalle del presupuesto Año 4'!K138 -> 0 | J19: ='Detalle del presupuesto Año 5'!L138 -> 0 | K19: ='Detalle del presupuesto Año 5'!K138 -> 0 | L19: =SUM(B19:K19) -> 0
A21: Costes totales del proyecto | B21: =SUM(B18,B19) -> 0 | C21: 0 | D21: =SUM(D18,D19) -> 0 | E21: 0 | F21: 0 | G21: 0 | H21: 0 | I21: 0 | J21: 0 | K21: 0 | L21: =SUM(B21:K21) -> 0
A22: ¿Incluye este presupuesto los costes de conferencias, que se definen de forma amplia para incluir reuniones, retiros, seminarios, simposios y actividades de formación? S/N | J22: =IF(OR('Detalle del presupuesto Año 1'!K2="Yes",'[2]Budget Detail - Year 2'!K2="Yes",'[3]Budget Detail - Year 3'!K2="Yes",'[4]Budget Detail - Year 4'!K2="Yes",'[5]Budget Detail - Year 5'!K2="Yes"),"Yes","No") -> 

Sheet Admin (hidden)
A1: devuser1

Sheet Reference Data (hidden)
A1: =19760 -> 19760 | B1: =A1*0.9 -> 17784 | C1: =A1*0.1 -> 1976
A6: PA1 Equipment Dropdown Options
A7: Vehicles
A8: Vehicles w/ accessory package
A9: Radios
A10: Computers
A11: Computer Aided Dispatch
A12: Records Management System
A13: Communication System
A14: Basic Issue Firearm
A15: Basic Issue Equipment
A16: Bullet Proof Vests
A18: PA1 Supplies Dropdown Options
A19: Basic Issue Uniforms
A21: PA1 Personnel Options
A22: Entry Level Sworn Officer
A23: Village Public Safety Officer (AK Only)
A24: Entry Level Sworn Ranger
A25: Entry Level Sworn Conservation and Wildlife Officer
A26: Civilian Methamphetamine Coordinator
A28: Demographics Yes No Options
A29: Yes
A30: No
A32: Travel Items
A33: Lodging
A34: Meals
A35: Mileage
A36: Transportation
A37: Local Travel
A38: Other

Sheet Ej - detalle del presupuesto
A1: Detalle del presupuesto EJEMPLO
A2: ¿Incluye este presupuesto los costes de conferencias, que se definen de forma amplia para incluir reuniones, retiros, seminarios, simposios y actividades de formación? S/N
A3: (Guía financiera del DOJ, sección 3.10)
A4: A. Personal
A5: Nombre | B5: Cargo | C5: Cálculo
A6: Mencione cada nombre, en caso de que lo conozca. | B6: Mencione cada Cargo, en caso de que lo conozca. | C6: Indique la tasa de salario anual y la cantidad de tiempo dedicado al proyecto para cada nombre/puesto.
C7: Salario | E7: Tasa | F7: Tiempo trabajado (número de horas, días, meses, años) | H7: Porcentaje de tiempo | J7: Coste total | K7: Contribución no federal | L7: Solicitud federal
J9: =CEILING(C9*F9*H9,1) -> 0 | L9: =IF(J9-K9<0,0,J9-K9) -> 0
A10: John Smith | B10: Director Ejecutivo | C10: 140000 | E10: Anualmente | F10: 1 | H10: 0.05 | J10: 7000 | K10: 0 | L10: 7000
A11: Jane Doe | B11: Directora de proyectos | C11: 90000 | E11: Anualmente | F11: 1 | H11: 0.75 | J11: 67500 | K11: 0 | L11: 67500
A12: Alex Jones | B12: Asistente de programa | C12: 22 | E12: por hora | F12: 1040 | H12: 1 | J12: 22880 | K12: 0 | L12: 22880
J13: 0 | L13: 0
J14: 0 | L14: 0
A15: Total(es) | J15: =SUM(J9:J14) -> 97380 | K15: =SUM(K9:K14) -> 0 | L15: =SUM(L9:L14) -> 97380
A16: Descripción
A17: John Smith, Director Ejecutivo, se encargará de la supervisión de toda la adjudicación, dedicando un 5% de su tiempo al proyecto. Jane Doe, directora del proyecto, gestionará el proyecto, completará los informes y presentará los resultados, dedicando el 75% de su tiempo al proyecto. Alex Jones, asistente de programa, prestará asistencia al director del proyecto cuando sea necesario, dedicando 1.040 horas al proyecto.
A19: B. Beneficios adicionales
A20: Nombre | D20: Cálculo
A21: Enumere cada uno de los puestos financiados por la subvención que reciban beneficios adicionales. | D21: Mostrar la base de cálculo
D22: Base | F22: Tasa | J22: Coste total | K22: Contribución no federal | L22: Solicitud federal
J24: =CEILING(D24*F24,1) -> 0 | L24: =IF(J24-K24<0,0,J24-K24) -> 0
A25: John Smith | D25: 7000 | F25: 0.25 | J25: =CEILING(D25*F25,1) -> 1750 | K25: 0 | L25: =IF(J25-K25<0,0,J25-K25) -> 1750
A26: Jane Doe | D26: 67500 | F26: 0.25 | J26: =CEILING(D26*F26,1) -> 16875 | K26: 0 | L26: =IF(J26-K26<0,0,J26-K26) -> 16875
A27: Alex Jones | D27: 22880 | F27: 0.25 | J27: =CEILING(D27*F27,1) -> 5720 | K27: 0 | L27: =IF(J27-K27<0,0,J27-K27) -> 5720
J28: =CEILING(D28*F28,1) -> 0 | L28: =IF(J28-K28<0,0,J28-K28) -> 0
A29: Total(es) | J29: =SUM(J24:J28) -> 24345 | K29: =SUM(K24:K28) -> 0 | L29: =SUM(L24:L28) -> 24345
A30: Descripción
A31: Nuestra tasa de beneficios complementarios es del 25% y cubre los siguientes elementos: FICA (7,65%), compensación laboral (1,35%), seguro médico (11%), jubilación (5%)
A33: C. Viajes
A34: Propósito del viaje | B34: Ubicación | D34: Tipo de gasto | E34: Base | F34: Cálculo
A35: Indique el objetivo de cada viaje o tipo de viaje (formación, reunión del grupo consultivo) | B35: Indique el destino del viaje. | D35: Alojamiento, comidas, etc. | E35: Por día, milla, viaje, etc. | F35: Calcula el coste de cada tipo de gasto X el número de personas que viajan.
F36: Costo | G36: Cantidad | H36: # de Personal | I36: # Número de viajes | J36: Coste total | K36: Contribución no federal | L36: Solicitud federal
E38: =IF((D38="Lodging"),"Night",IF((D38="Meals"),"Day",IF((D38="Mileage"),"Mile",IF((D38="Transportation"),"Round-trip","N/A")))) -> N/A | J38: =CEILING(F38*G38*H38*I38,1) -> 0 | L38: =IF(J38-K38<0,0,J38-K38) -> 0
A39: Capacitación para gerentes de proyecto | B39: Reno, NV | D39: Otro | E39: N/A | F39: 50 | G39: 1 | H39: 1 | I39: 1 | J39: 50 | K39: 0 | L39: 50
A40: Capacitación para gerentes de proyecto | B40: Reno, NV | D40: Viaje local | E40: N/A | F40: 50 | G40: 1 | H40: 1 | I40: 1 | J40: 50 | K40: 0 | L40: 50
A41: Capacitación para gerentes de proyecto | B41: Reno, NV | D41: Transporte | E41: N/A | F41: 600 | G41: 1 | H41: 1 | I41: 1 | J41: 600 | K41: 0 | L41: 600
A42: Capacitación para gerentes de proyecto | B42: Reno, NV | D42: Kilometraje | E42: N/A | F42: 0.51 | G42: 100 | H42: 1 | I42: 1 | J42: 51 | K42: 0 | L42: 51
A43: Capacitación para gerentes de proyecto | B43: Reno, NV | D43: Comidas | E43: N/A | F43: 51 | G43: 5.5 | H43: 1 | I43: 1 | J43: 281 | K43: 0 | L43: 281
A44: Capacitación para gerentes de proyecto | B44: Reno, NV | D44: Alojamiento | E44: N/A | F44: 94 | G44: 5 | H44: 1 | I44: 1 | J44: 470 | K44: 0 | L44: 470
A45: Viaje de campo del director de proyecto | B45: Varios | D45: Kilometraje | E45: N/A | F45: 0.51 | G45: 250 | H45: 1 | I45: 20 | J45: 2550 | K45: 0 | L45: 2550
A46: Formación de orientación obligatoria | B46: Washington, DC | D46: Viaje local | E46: N/A | F46: 25 | G46: 1 | H46: 3 | I46: 1 | J46: 75 | K46: 0 | L46: 75
A47: Formación de orientación obligatoria | B47: Washington, DC | D47: Otro | E47: N/A | F47: 50 | G47: 1 | H47: 3 | I47: 1 | J47: 150 | K47: 0 | L47: 150
A48: Formación de orientación obligatoria | B48: Washington, DC | D48: Transporte | E48: N/A | F48: 500 | G48: 1 | H48: 3 | I48: 1 | J48: 1500 | K48: 0 | L48: 1500
A49: Formación de orientación obligatoria | B49: Washington, DC | D49: Kilometraje | E49: N/A | F49: 0.51 | G49: 100 | H49: 1 | I49: 1 | J49: 51 | K49: 0 | L49: 51
A50: Formación de orientación obligatoria | B50: Washington, DC | D50: Comidas | E50: N/A | F50: 71 | G50: 3.5 | H50: 3 | I50: 1 | J50: 746 | K50: 0 | L50: 746
A51: Formación de orientación obligatoria | B51: Washington, DC | D51: Alojamiento | E51: N/A | F51: 224 | G51: 3 | H51: 3 | I51: 1 | J51: 2016 | K51: 0 | L51: 2016
E52: N/A | J52: 0 | L52: 0
A53: Total(es) | J53: =SUM(J38:J52) -> 8590 | K53: =SUM(K38:K52) -> 0 | L53: =SUM(L38:L52) -> 8590
A54: Descripción
A55: Según las directrices del programa, los miembros clave deben asistir a la formación de orientación en Washington, DC. Seguimos nuestra propia política de viajes establecida por escrito. El alojamiento es para 3 noches y las comidas se presupuestan en 3,5 días ya que los dos días de viaje se computan en 0,75 días. El kilometraje para llegar al aeropuerto y los desplazamientos locales son para el taxi de ida y vuelta. También los gastos de equipaje de 50 dólares son 25 dólares por trayecto. El director del proyecto asistirá a la formación en Reno, NV. Seguimos nuestra propia política de viajes establecida por escrito. El alojamiento es para 5 noches y las comidas se presupuestan en 5,5 días ya que los dos días de viaje se computan en 0,75 días. El kilometraje para llegar al aeropuerto y los desplazamientos locales son para el taxi de ida y vuelta. Además, los gastos de equipaje de 50 dólares son de 25 dólares por trayecto. La directora del proyecto utilizará su propio vehículo para realizar el trabajo de campo, con un viaje medio de unos 250 millas y una previsión de 20 viajes.
A57: D. Equipo
A58: Elemento | D58: Cálculo
A59: Enumere y describa cada uno de los equipos que se van a adquirir | D59: Calcular el coste (por ejemplo, el número de cada artículo que hay que comprar X el coste por artículo)
D60: # Número de elementos | F60: Costo | J60: Coste total | K60: Contribución no federal | L60: Solicitud federal
J62: =CEILING(D62*F62,1) -> 0 | L62: =IF(J62-K62<0,0,J62-K62) -> 0
A63: Computador portátil Dell | D63: 1 | F63: 2547 | J63: =CEILING(D63*F63,1) -> 2547 | K63: 0 | L63: =IF(J63-K63<0,0,J63-K63) -> 2547
J64: =CEILING(D64*F64,1) -> 0 | L64: =IF(J64-K64<0,0,J64-K64) -> 0
A65: Total(es) | J65: =SUM(J62:J64) -> 2547 | K65: =SUM(K62:K64) -> 0 | L65: =SUM(L62:L64) -> 2547
A66: Descripción
A67: El director del proyecto necesitará un computador portátil mientras esté en trabajo de campo y durante la formación. Seguimos la política de capitalización de nuestra agencia.
A69: E. Suministros
A70: Artículos de suministro | D70: Cálculo
A71: Proporcione una lista de los tipos de artículos que se comprarán con los fondos de la subvención. | D71: Describa el artículo y calcule los costes. Cálculo: el número de cada artículo que hay que comprar X el coste por artículo.
D72: # Número de elementos | F72: Costo | J72: Coste total | K72: Contribución no federal | L72: Solicitud federal
J74: =CEILING(D74*F74,1) -> 0 | L74: =IF(J74-K74<0,0,J74-K74) -> 0
A75: Impresora | D75: 1 | F75: 500 | J75: 500 | K75: 0 | L75: 500
A76: Archivador con cerradura | D76: 2 | F76: 1000 | J76: 2000 | K76: 0 | L76: 2000
A77: Escáner plano | D77: 1 | F77: 400 | J77: 400 | K77: 0 | L77: 400
A78: Material de oficina en general | D78: 12 | F78: 150 | J78: 1800 | K78: 0 | L78: 1800
J79: 0 | L79: 0
A80: Total(es) | J80: =SUM(J74:J79) -> 4700 | K80: =SUM(K74:K79) -> 0 | L80: =SUM(L74:L79) -> 4700
A81: Descripción
A82: El director del proyecto necesitará una impresora para imprimir los informes. Se necesita un archivador con cerradura para mantener segura la información de los clientes. Se necesita un escáner plano para escanear diversos documentos recogidos sobre el terreno. Todo el personal de este proyecto utilizará material de oficina general: bolígrafos, lápices, papel, clips y otros suministros básicos. El material de oficina está basado en 12 meses a 150 dólares al mes. Esta cantidad se determinó en función de otros proyectos de esta envergadura que hemos realizado en el pasado.
A84: F. Construcción | B84: Por regla general, los costes de construcción no son admisibles. Consulte con la oficina del programa antes de presupuestar fondos en esta categoría.
A85: Objetivo | B85: Descripción del trabajo | D85: Cálculo
A86: Indicar la finalidad de la construcción | B86: Describa el o los proyectos de construcción | D86: Calcule el coste (por ejemplo, el número de cada artículo que hay que comprar X el coste por artículo)
D87: # Número de elementos | F87: Costo | J87: Coste total | K87: Contribución no federal | L87: Solicitud federal
J89: =CEILING(D89*F89,1) -> 0 | L89: =IF(J89-K89<0,0,J89-K89) -> 0
A90: Total(es) | J90: =SUM(J89:J89) -> 0 | K90: =SUM(K89:K89) -> 0 | L90: =SUM(L89:L89) -> 0
A91: Descripción
A94: G. Subconcesiones (subvenciones)
A95: Descripción | C95: Objetivo | H95: Asesor
A96: Describa las actividades que llevarán a cabo los subreceptores. | C96: Describa la finalidad de la subconcesión (subvención) | H96: ¿La subvención es para un consultor?
J97: Coste total | K97: Contribución no federal | L97: Solicitud federal
L99: =IF(J99-K99<0,0,J99-K99) -> 0
A100: Realiza actividades sobre el terreno en una zona remota | C100: Presta servicios y realizar trabajos de campo en una zona remota incluida en el proyecto | H100: No | J100: 25000 | K100: 0 | L100: =IF(J100-K100<0,0,J100-K100) -> 25000
L101: =IF(J101-K101<0,0,J101-K101) -> 0
A102: Total(es) | J102: =SUM(J99:J101) -> 25000 | K102: =SUM(K99:K101) -> 0 | L102: =SUM(L99:L101) -> 25000
A103: Viajes de los asesores (de ser necesarios)
A104: Propósito del viaje | B104: Ubicación | D104: Tipo de gasto | G104: Cálculo
A105: Indique el objetivo de cada viaje o tipo de viaje (formación, reunión del grupo consultivo) | B105: Indique el destino del viaje. | D105: Hotel, pasajes aéreos, viáticos | G105: Calcula el coste de cada tipo de gasto X el número de personas que viajan.
G106: Costo | H106: Duración o distancia | I106: # de Personal | J106: Coste total | K106: Contribución no federal | L106: Solicitud federal
J108: =CEILING(G108*H108*I108,1) -> 0 | L108: =IF(J108-K108<0,0,J108-K108) -> 0
J109: =CEILING(G109*H109*I109,1) -> 0 | L109: =IF(J109-K109<0,0,J109-K109) -> 0
J110: =CEILING(G110*H110*I110,1) -> 0 | L110: =IF(J110-K110<0,0,J110-K110) -> 0
A111: Total | J111: =SUM(J108:J110) -> 0 | K111: =SUM(K108:K110) -> 0 | L111: =SUM(L108:L110) -> 0
A112: Descripción
A113: La agencia concederá una subvención para prestar servicios y realizar trabajos de campo en una zona remota. Los 25.000 dólares se calcularon basándose en un proyecto de tamaño similar realizado en la misma zona.
A115: H. Contratos de adquisición
A116: Descripción | C116: Objetivo | H116: Asesor
A117: Describa el producto o servicio que se va a adquirir por contrato y haga una estimación del coste. Se anima a los solicitantes a promover la competencia libre y abierta en la adjudicación de contratos. Se debe proporcionar una justificación separada para las adquisiciones de fuente única que superen el Umbral de Adquisición Simplificada (actualmente 150.000 dólares). | C117: Describa el propósito del contrato | H117: ¿El contrato es para un consultor?
J118: Coste total | K118: Contribución no federal | L118: Solicitud federal
L120: =IF(J120-K120<0,0,J120-K120) -> 0
A121: William Penn, CPA | C121: Asistencia contable | H121: Si | J121: 9400 | K121: 0 | L121: =IF(J121-K121<0,0,J121-K121) -> 9400
A122: Empresa ABC | C122: Servicios de creación de encuestas y de entrada de datos a partir de las encuestas enviadas. | H122: No | J122: 40000 | K122: 0 | L122: =IF(J122-K122<0,0,J122-K122) -> 40000
L123: =IF(J123-K123<0,0,J123-K123) -> 0
A124: Total(es) | J124: =SUM(J120:J123) -> 49400 | K124: =SUM(K120:K123) -> 0 | L124: =SUM(L120:L123) -> 49400
A125: Viajes de los asesores (de ser necesarios)
A126: Propósito del viaje | B126: Ubicación | D126: Tipo de gasto | G126: Cálculo
A127: Indique el objetivo de cada viaje o tipo de viaje (formación, reunión del grupo consultivo) | B127: Indique el destino del viaje. | D127: Hotel, pasajes aéreos, viáticos | G127: Calcula el coste de cada tipo de gasto X el número de personas que viajan.
G128: Costo | H128: Duración o distancia | I128: # de Personal | J128: Coste total | K128: Contribución no federal | L128: Solicitud federal
J130: =CEILING(G130*H130*I130,1) -> 0 | L130: =IF(J130-K130<0,0,J130-K130) -> 0
J131: =CEILING(G131*H131*I131,1) -> 0 | L131: =IF(J131-K131<0,0,J131-K131) -> 0
J132: =CEILING(G132*H132*I132,1) -> 0 | L132: =IF(J132-K132<0,0,J132-K132) -> 0
A133: Total | J133: =SUM(J130:J132) -> 0 | K133: =SUM(K130:K132) -> 0 | L133: =SUM(L130:L132) -> 0
A134: Descripción
A135: La empresa ABC elaborará una encuesta en línea bajo la dirección del director del proyecto para llegar a los distintos lugares y determinar las necesidades. Además, habrá una encuesta en papel para aquellos que no puedan utilizar la encuesta en línea. La empresa ABC registrará las encuestas en papel. Una vez realizadas las encuestas, la empresa ABC recopilará los datos para el director del proyecto. William Penn ayudará a completar los informes financieros, así como el seguimiento de los gastos del subsidio. La tarifa del Sr. Penn es de 47 dólares por hora, y estimamos que el Sr. Penn prestará 200 horas de servicios.
A138: I. Otros costes
A139: Descripción | C139: Cálculo
A140: Enumere y describa los elementos que se pagarán con los fondos de las subvenciones (por ejemplo, alquiler, copias, teléfono, conserjería o servicios de seguridad, y fondos de investigación o confidenciales). | C140: Mostrar la base de cálculo
C141: Cantidad | E141: Base | F141: Costo | H141: Duración | J141: Coste total | K141: Contribución no federal | L141: Solicitud federal
J143: =CEILING(C143*F143*H143,1) -> 0 | L143: =IF(J143-K143<0,0,J143-K143) -> 0
A144: Renta | C144: 500 | E144: pies cuadrados | F144: 2.51 | H144: 12 | J144: 15060 | K144: 0 | L144: 15060
A145: Teléfono | C145: 1 | E145: tarifa mensual | F145: 50 | H145: 12 | J145: 600 | K145: 0 | L145: 600
A146: Impresión | C146: 500 | E146: por copia | F146: 0.05 | H146: 12 | J146: 300 | K146: 0 | L146: 300
A147: Correos | C147: 1000 | E147: boletín trimestral | F147: 0.5 | H147: 4 | J147: 2000 | K147: 0 | L147: 2000
J148: 0 | L148: 0
A149: Total(es) | J149: =SUM(J144:J148) -> 17960 | K149: =SUM(K148:K148) -> 0 | L149: =SUM(L144:L148) -> 17960
A150: Descripción
A151: La renta se cobra a 2,51 dólares por pie cuadrado al mes. El teléfono se basa en 50 dólares al mes durante 12 meses. La impresión se basa en 500 ejemplares al mes durante 12 meses. Gastos de envío de un boletín trimestral para 1.000 destinatarios.
A153: J. Costos indirectos
A154: Descripción | D154: Cálculo
A155: Describa cuál es la tasa aprobada y cómo se aplica. | D155: Calcule los costes indirectos para las partes del programa que permiten tales costes.
D156: Base | F156: Tasa de costos indirectos | J156: Coste total | K156: Contribución no federal | L156: Solicitud federal
J158: =CEILING(D158*F158,1) -> 0 | L158: =IF(J158-K158<0,0,J158-K158) -> 0
A159: Costos indirectos | D159: 121725 | F159: 0.1254 | J159: =CEILING(D159*F159,1) -> 15265 | K159: 0 | L159: =IF(J159-K159<0,0,J159-K159) -> 15265
J160: =CEILING(D160*F160,1) -> 0 | L160: =IF(J160-K160<0,0,J160-K160) -> 0
A161: Total(es) | J161: =SUM(J158:J160) -> 15265 | K161: =SUM(K158:K160) -> 0 | L161: =SUM(L158:L160) -> 15265
A162: Descripción
A163: Los costes indirectos se basan en la tasa aprobada por el gobierno federal del 12,54% sobre el total de la mano de obra directa (personal + gastos adicionales).

Sheet Definiciones
A1: Definiciones
A2: Puede encontrar información adicional en la Guía Financiera del DOJ
A3: Guía financiera del DOJ
A4: Término | B4: Definición
A5: Contrapartida | B5: La contrapartida es la parte de los costes del proyecto que corresponde al beneficiario. La contrapartida puede ser "en especie" o "en efectivo". La contrapartida en especie incluye el valor de los servicios donados. La contrapartida en efectivo incluye el dinero real gastado por el beneficiario y debe tener una relación de costes con la subvención federal a la que se aplica la contrapartida. (Por ejemplo: La contrapartida de los costes administrativos debe ser otros costes administrativos, no otra contrapartida de costes del programa). Ejemplo de cálculo de la contrapartida no federal: Cálculo de la contrapartida: Si la contrapartida es del 25%, el cálculo es el siguiente: Solicitud federal: $350.000 Dividido por 0,75 o 75%: $466.667 Multiplicado por el importe de la contrapartida 0,25 o el 25%. equivale a la cuantía de la contrapartida requerida: $116.667
A6: Tarifa negociada aprobada | B6: La tarifa negociada aprobada es cualquier tarifa de beneficios adicionales actual aprobada para el beneficiario de la subvención por su agencia federal correspondiente.
A7: Artículo fungible | B7: Un artículo fungible es cualquier material que se consuma durante el transcurso del proyecto, como material de oficina, suministros para programas, etc. Los artículos fungibles suelen considerarse consumidos en el momento en que se emiten y no se registran como inventario retornable.
A8: No fungible | B8: Un artículo no fungible es un bien tangible que tiene una vida útil de más de dos años y un coste de adquisición de 5.000 dólares o más por unidad. (Nota: La política de capitalización de la organización puede utilizarse para artículos que cuesten menos de 5.000 dólares).
A9: Renovaciones | B9: Se consideran admisibles los gastos de reordenación, reforma y restauración ordinaria de las instalaciones. Los costes de arreglos y modificaciones especiales realizados específicamente para el proyecto son admisibles con la aprobación previa del organismo adjudicador.
A10: Reglamento Federal de Adquisiciones | B10: El Reglamento Federal de Adquisiciones se establece para la codificación y publicación de políticas y procedimientos uniformes de adquisición por parte de todas las agencias ejecutivas. El Sistema de Reglamentación de Adquisiciones Federales consiste en el Reglamento de Adquisiciones Federales (FAR por sus siglas en inglés), que es el documento principal, y los reglamentos de adquisición de las agencias que implementan o complementan el FAR.
A11: Fuente única | B11: La contratación por medio de propuestas no competitivas es la contratación a través de la solicitud de una sola fuente, o que después de la solicitud de varias fuentes, se determine que la competencia es inadecuada. Los beneficiarios de la subvención pueden tomar la decisión inicial de que la competencia no es viable si se da una de las siguientes circunstancias: 1. El artículo de servicio sólo está disponible en una única fuente. 2. La exigencia o emergencia pública de la necesidad no permitirá un retraso derivado de una licitación. 3. Tras solicitar varias fuentes, los concursos se consideran inadecuados.
A12: Transacción en condiciones de igualdad | B12: Una transacción en la que los compradores y vendedores de un producto actúan de forma independiente y no tienen ninguna relación entre sí. El concepto de una transacción en condiciones de igualdad consiste en garantizar que ambas partes del acuerdo actúan en su propio nterés y no están sujetas a ninguna presión o coacción por parte de la otra parte. En general, los costes de alquiler de instalaciones no son admisibles cuando una de las partes del contrato de alquiler puede controlar o influir sustancialmente en las acciones de la otra (por ejemplo, organizaciones bajo control común a través de funcionarios comunes, Directores o miembros).
A13: Fondos confidenciales | B13: Los fondos confidenciales son los que se asignan a: Compra de servicios (P/S). Esta categoría incluye los viajes o el transporte de un funcionario no federal o de un informante; el alquiler de un apartamento, de un local comercial, de automóviles de lujo, de un avión o de una embarcación, o de efectos similares para crear o establecer la apariencia de riqueza; y/o las comidas, las bebidas, las diversiones y los gastos similares (incluyendo la compra de dinero y los fajos de dinero, etc.) para fines encubiertos, dentro de límites razonables. Compra de pruebas (P/E). Esta categoría es para P/E y/o contrabando, como narcóticos y drogas peligrosas, armas de fuego, bienes robados, sellos fiscales falsos, etc., necesarios para determinar la existencia de un delito o para establecer la identidad de un participante en un delito. Compra de información específica (P/I). Esta categoría incluye el pago de dinero a un informante por información específica. Todos los demás gastos de los informantes se clasificarán en P/S y se imputarán en consecuencia.
A14: Acuerdo negociado totalmente ejecutado | B14: El Acuerdo Negociado Totalmente Ejecutado es un acuerdo firmado y aprobado sobre la tasa de costes indirectos que refleja un acuerdo alcanzado entre el beneficiario de la subvención y la agencia federal competente.
A15: Agencia Federal competente | B15: La agencia federal competente es la agencia federal que, por lo general, proporciona la mayor ayuda financiera federal al receptor de los fondos. La Oficina de Gestión y Presupuesto (OMB) asigna el reconocimiento. Las asignaciones de la agencia competente para las ciudades y condados más grandes se publican en el Registro Federal.
